Workbook

Sheet 第５-１表_県計
A1: 第5表 地域振興局別・人工林天然林別・資源構成表
A3: 県計(人工林) | O3: 単位 面積 : ha、蓄積 成長量 : ㎥
B4: 樹種 | C4: 針 葉 樹 | J4: 広 葉 樹 | O4: 計
C5: ス ギ | D5: ヒ ノ キ | E5: サ ワ ラ | F5: ア カ マ ツ | G5: カ ラ マ ツ | H5: そ の 他 針 | I5: 小 計 | J5: ク ヌ ギ | K5: ブ ナ | L5: ナ ラ | M5: そ の 他 広 | N5: 小 計
A6: 齢級
A7: 1 | B7: 面積 | C7: 22.22 | D7: 47.43 | E7: 0 | F7: 8.35 | G7: 850.58 | H7: 0 | I7: 928.58 | J7: 0 | K7: 0 | L7: 66.18 | M7: 56.84 | N7: 123.02 | O7: 1051.6
B8: 蓄積 | C8: 0 | D8: 0 | E8: 0 | F8: 0 | G8: 0 | H8: 0 | I8: 0 | J8: 0 | K8: 0 | L8: 0 | M8: 0 | N8: 0 | O8: 0
B9: 成長 | C9: 0 | D9: 0 | E9: 0 | F9: 0 | G9: 0 | H9: 0 | I9: 0 | J9: 0 | K9: 0 | L9: 0 | M9: 0 | N9: 0 | O9: 0
A10: 2 | B10: 面積 | C10: 16.17 | D10: 89.99 | E10: 0.71 | F10: 16.61 | G10: 764.44 | H10: 5.47 | I10: 893.39 | J10: 0.72 | K10: 0.1 | L10: 96.87 | M10: 109.6 | N10: 207.29 | O10: 1100.68
B11: 蓄積 | C11: 0 | D11: 0 | E11: 0 | F11: 0 | G11: 0 | H11: 0 | I11: 0 | J11: 25 | K11: 0 | L11: 1146 | M11: 1340 | N11: 2511 | O11: 2511
B12: 成長 | C12: 0 | D12: 0 | E12: 0 | F12: 0 | G12: 0 | H12: 0 | I12: 0 | J12: 7.1 | K12: 0 | L12: 159.3 | M12: 187.2 | N12: 353.6 | O12: 353.6
A13: 3 | B13: 面積 | C13: 13.97 | D13: 96.75 | E13: 0 | F13: 1.93 | G13: 50.46 | H13: 0.11 | I13: 163.22 | J13: 0 | K13: 9.49 | L13: 28.58 | M13: 33.71 | N13: 71.78 | O13: 235
B14: 蓄積 | C14: 1786 | D14: 4287 | E14: 0 | F14: 119 | G14: 7792 | H14: 18 | I14: 14002 | J14: 0 | K14: 68 | L14: 618 | M14: 674 | N14: 1360 | O14: 15362
B15: 成長 | C15: 365.5 | D15: 877.4 | E15: 0 | F15: 16 | G15: 695.7 | H15: 2.5 | I15: 1957.1 | J15: 0 | K15: 11.6 | L15: 53.4 | M15: 60.7 | N15: 125.7 | O15: 2082.8
A16: 4 | B16: 面積 | C16: 49.58 | D16: 533.58 | E16: 10.77 | F16: 5.34 | G16: 110.03 | H16: 2 | I16: 711.3 | J16: 1.34 | K16: 0.67 | L16: 42.64 | M16: 116.96 | N16: 161.61 | O16: 872.91
B17: 蓄積 | C17: 4836 | D17: 41553 | E17: 914 | F17: 436 | G17: 12493 | H17: 82 | I17: 60314 | J17: 48 | K17: 11 | L17: 1352 | M17: 4231 | N17: 5642 | O17: 65956
B18: 成長 | C18: 536.2 | D18: 3949.8 | E18: 85.4 | F18: 35.7 | G18: 754.7 | H18: 6.8 | I18: 5368.6 | J18: 3.3 | K18: 1 | L18: 90.9 | M18: 285.8 | N18: 381 | O18: 5749.6
A19: 5 | B19: 面積 | C19: 107.53 | D19: 876.48 | E19: 1.46 | F19: 16.93 | G19: 97.8 | H19: 8.46 | I19: 1108.66 | J19: 11.33 | K19: 6.62 | L19: 29.95 | M19: 177.57 | N19: 225.47 | O19: 1334.13
B20: 蓄積 | C20: 21432 | D20: 108708 | E20: 111 | F20: 4811 | G20: 14262 | H20: 1751 | I20: 151075 | J20: 444 | K20: 309 | L20: 1781 | M20: 11377 | N20: 13911 | O20: 164986
B21: 成長 | C21: 1461.7 | D21: 6717.1 | E21: 7.3 | F21: 244.9 | G21: 680 | H21: 117.9 | I21: 9228.9 | J21: 14.4 | K21: 24.3 | L21: 91.4 | M21: 583 | N21: 713.1 | O21: 9942
A22: 6 | B22: 面積 | C22: 248.34 | D22: 1653.82 | E22: 1.24 | F22: 41.21 | G22: 286.87 | H22: 28.87 | I22: 2260.35 | J22: 1.94 | K22: 7.06 | L22: 64.45 | M22: 181.84 | N22: 255.29 | O22: 2515.64
B23: 蓄積 | C23: 63533 | D23: 267932 | E23: 785 | F23: 5152 | G23: 49247 | H23: 8731 | I23: 395380 | J23: 251 | K23: 537 | L23: 5816 | M23: 13995 | N23: 20599 | O23: 415979
B24: 成長 | C24: 3037.8 | D24: 12124.6 | E24: 42.2 | F24: 205.9 | G24: 1304.2 | H24: 454.5 | I24: 17169.2 | J24: 7.7 | K24: 35.7 | L24: 231.3 | M24: 562.8 | N24: 837.5 | O24: 18006.7
A25: 7 | B25: 面積 | C25: 516.17 | D25: 2719.53 | E25: 2.34 | F25: 85.08 | G25: 478.11 | H25: 69.97 | I25: 3871.2 | J25: 0.59 | K25: 2 | L25: 30.6 | M25: 132.25 | N25: 165.44 | O25: 4036.64
B26: 蓄積 | C26: 147472 | D26: 515412 | E26: 741 | F26: 15892 | G26: 100079 | H26: 15073 | I26: 794669 | J26: 44 | K26: 1476 | L26: 3525 | M26: 11311 | N26: 16356 | O26: 811025
B27: 成長 | C27: 5490 | D27: 18548.9 | E27: 29.3 | F27: 403.5 | G27: 2318.5 | H27: 662.5 | I27: 27452.7 | J27: 0.6 | K27: 85.6 | L27: 111.5 | M27: 351.1 | N27: 548.8 | O27: 28001.5
A28: 8 | B28: 面積 | C28: 1280.28 | D28: 4238.68 | E28: 2.83 | F28: 223.92 | G28: 1029.92 | H28: 185.19 | I28: 6960.82 | J28: 4.17 | K28: 0.04 | L28: 58.22 | M28: 111.5 | N28: 173.93 | O28: 7134.75
B29: 蓄積 | C29: 425559 | D29: 837833 | E29: 340 | F29: 37645 | G29: 224963 | H29: 38191 | I29: 1564531 | J29: 310 | K29: 2 | L29: 4073 | M29: 8245 | N29: 12630 | O29: 1577161
B30: 成長 | C30: 13430.2 | D30: 23480.6 | E30: 11.1 | F30: 843.3 | G30: 4922.8 | H30: 1433 | I30: 44121 | J30: 2.4 | K30: 0.1 | L30: 121.7 | M30: 246.4 | N30: 370.6 | O30: 44491.6
A31: 9 | B31: 面積 | C31: 2326.56 | D31: 6298.72 | E31: 6.12 | F31: 643.52 | G31: 1925.78 | H31: 384.57 | I31: 11585.27 | J31: 0.06 | K31: 0 | L31: 12.46 | M31: 135.25 | N31: 147.77 | O31: 11733.04
B32: 蓄積 | C32: 871241 | D32: 1326845 | E32: 1172 | F32: 119217 | G32: 450472 | H32: 51128 | I32: 2820075 | J32: 5 | K32: 0 | L32: 984 | M32: 10507 | N32: 11496 | O32: 2831571
B33: 成長 | C33: 19259.2 | D33: 31040.1 | E33: 27.9 | F33: 1834.3 | G33: 8428.2 | H33: 1692.3 | I33: 62282 | J33: 0 | K33: 0 | L33: 26.2 | M33: 291.4 | N33: 317.6 | O33: 62599.6
A34: 10 | B34: 面積 | C34: 3793.39 | D34: 7667.41 | E34: 9.99 | F34: 2256.86 | G34: 4450.67 | H34: 603.23 | I34: 18781.55 | J34: 0 | K34: 0 | L34: 0.76 | M34: 93.63 | N34: 94.39 | O34: 18875.94
B35: 蓄積 | C35: 1504258 | D35: 1689030 | E35: 2339 | F35: 447690 | G35: 1097560 | H35: 75911 | I35: 4816788 | J35: 0 | K35: 0 | L35: 66 | M35: 7920 | N35: 7986 | O35: 4824774
B36: 成長 | C36: 25229.6 | D36: 32311.4 | E36: 45.1 | F36: 5932.9 | G36: 16802.5 | H36: 2146.6 | I36: 82468.1 | J36: 0 | K36: 0 | L36: 1.8 | M36: 198.8 | N36: 200.6 | O36: 82668.7
A37: 11 | B37: 面積 | C37: 5452.32 | D37: 7212.35 | E37: 28.63 | F37: 6259.71 | G37: 9722.71 | H37: 576.11 | I37: 29251.83 | J37: 0.62 | K37: 0.01 | L37: 0.72 | M37: 165.45 | N37: 166.8 | O37: 29418.63
B38: 蓄積 | C38: 2282983 | D38: 1744929 | E38: 6085 | F38: 1322375 | G38: 2610983 | H38: 81338 | I38: 8048693 | J38: 54 | K38: 1 | L38: 40 | M38: 14183 | N38: 14278 | O38: 8062971
B39: 成長 | C39: 28718.1 | D39: 29076.3 | E39: 101.9 | F39: 14772.5 | G39: 34413.7 | H39: 1869 | I39: 108951.5 | J39: 0 | K39: 0 | L39: 0.8 | M39: 272.5 | N39: 273.3 | O39: 109224.8
A40: 12 | B40: 面積 | C40: 7998.67 | D40: 4364.23 | E40: 30.25 | F40: 13724.58 | G40: 24141.26 | H40: 207.47 | I40: 50466.46 | J40: 0 | K40: 0 | L40: 1.97 | M40: 148.37 | N40: 150.34 | O40: 50616.8
B41: 蓄積 | C41: 3504907 | D41: 1130820 | E41: 8343 | F41: 3016323 | G41: 6740381 | H41: 32299 | I41: 14433073 | J41: 0 | K41: 0 | L41: 190 | M41: 10724 | N41: 10914 | O41: 14443987
B42: 成長 | C42: 39704.2 | D42: 15688.5 | E42: 124.5 | F42: 29582.6 | G42: 77843.4 | H42: 627.1 | I42: 163570.3 | J42: 0 | K42: 0 | L42: 2.8 | M42: 205.9 | N42: 208.7 | O42: 163779
A43: 13 | B43: 面積 | C43: 9254.83 | D43: 3148.79 | E43: 43.77 | F43: 12412.94 | G43: 41355.25 | H43: 292.82 | I43: 66508.4 | J43: 1.26 | K43: 50.81 | L43: 7.57 | M43: 185.39 | N43: 245.03 | O43: 66753.43
B44: 蓄積 | C44: 4092606 | D44: 847829 | E44: 12413 | F44: 2802026 | G44: 11796983 | H44: 47988 | I44: 19599845 | J44: 100 | K44: 2847 | L44: 1110 | M44: 17454 | N44: 21511 | O44: 19621356
B45: 成長 | C45: 44955.1 | D45: 11401.8 | E45: 182.4 | F45: 26752.3 | G45: 131703.3 | H45: 902.7 | I45: 215897.6 | J45: 0 | K45: 68.5 | L45: 14.4 | M45: 280.2 | N45: 363.1 | O45: 216260.7
A46: 14 | B46: 面積 | C46: 8891.66 | D46: 2698.68 | E46: 118.65 | F46: 6554.99 | G46: 46822.56 | H46: 278.68 | I46: 65365.22 | J46: 1.91 | K46: 0 | L46: 7.57 | M46: 205.3 | N46: 214.78 | O46: 65580
B47: 蓄積 | C47: 4009790 | D47: 750859 | E47: 31997 | F47: 1530546 | G47: 13992179 | H47: 51629 | I47: 20367000 | J47: 171 | K47: 0 | L47: 768 | M47: 18834 | N47: 19773 | O47: 20386773
B48: 成長 | C48: 35897.6 | D48: 9027.1 | E48: 425.1 | F48: 12289.4 | G48: 131971.4 | H48: 843.4 | I48: 190454 | J48: 0 | K48: 0 | L48: 10.2 | M48: 213.9 | N48: 224.1 | O48: 190678.1
A49: 15 以上 | B49: 面積 | C49: 15180.28 | D49: 9199.9 | E49: 525.99 | F49: 2531.52 | G49: 45220.8 | H49: 352.35 | I49: 73010.84 | J49: 0.26 | K49: 12.32 | L49: 12.41 | M49: 672.15 | N49: 697.14 | O49: 73707.98
B50: 蓄積 | C50: 7636752 | D50: 2763182 | E50: 166476 | F50: 614347 | G50: 13945536 | H50: 73069 | I50: 25199362 | J50: 26 | K50: 1134 | L50: 1530 | M50: 63289 | N50: 65979 | O50: 25265341
B51: 成長 | C51: 32763.6 | D51: 8114.5 | E51: 358.8 | F51: 3491.4 | G51: 76807.6 | H51: 641.1 | I51: 122177 | J51: 0.2 | K51: 9.1 | L51: 13.3 | M51: 324.1 | N51: 346.7 | O51: 122523.7
A52: 計 | B52: 面積 | C52: 55151.97 | D52: 50846.34 | E52: 782.75 | F52: 44783.49 | G52: 177307.24 | H52: 2995.3 | I52: 331867.09 | J52: 24.2 | K52: 89.12 | L52: 460.95 | M52: 2525.81 | N52: 3100.08 | O52: 334967.17
B53: 蓄積 | C53: 24567155 | D53: 12029219 | E53: 231716 | F53: 9916579 | G53: 51042930 | H53: 477208 | I53: 98264807 | J53: 1478 | K53: 6385 | L53: 22999 | M53: 194084 | N53: 224946 | O53: 98489753
B54: 成長 | C54: 250848.8 | D54: 202358.1 | E54: 1441 | F54: 96404.7 | G54: 488646 | H54: 11399.4 | I54: 1051098 | J54: 35.7 | K54: 235.9 | L54: 929 | M54: 4063.8 | N54: 5264.4 | O54: 1056362.4

Sheet 佐久
A1: 第5表 地域振興局別・人工林天然林別・資源構成表
A3: 佐久地域振興局(人工林) | O3: 単位 面積 : ha、蓄積 成長量 : ㎥
B4: 樹種 | C4: 針 葉 樹 | J4: 広 葉 樹 | O4: 計
C5: ス ギ | D5: ヒ ノ キ | E5: サ ワ ラ | F5: ア カ マ ツ | G5: カ ラ マ ツ | H5: そ の 他 針 | I5: 小 計 | J5: ク ヌ ギ | K5: ブ ナ | L5: ナ ラ | M5: そ の 他 広 | N5: 小 計
A6: 齢級
A7: 1 | B7: 面積 | D7: 6.35 | F7: 2.93 | G7: 387.94 | I7: 397.22 | L7: 3.14 | M7: 9.58 | N7: 12.72 | O7: =SUM(N7,I7) -> 409.94
B8: 蓄積 | D8: 0 | F8: 0 | G8: 0 | I8: 0 | L8: 0 | M8: 0 | N8: 0 | O8: =SUM(N8,I8) -> 0
B9: 成長 | D9: 0 | F9: 0 | G9: 0 | I9: 0 | L9: 0 | M9: 0 | N9: 0 | O9: 0
A10: 2 | B10: 面積 | C10: 0.09 | D10: 5.18 | E10: 0.31 | F10: 0.05 | G10: 451.06 | H10: 0.43 | I10: 457.12 | L10: 10.64 | M10: 3.36 | N10: 14 | O10: 471.12
B11: 蓄積 | C11: 0 | D11: 0 | E11: 0 | F11: 0 | G11: 0 | H11: 0 | I11: 0 | L11: 118 | M11: 46 | N11: 164 | O11: 164
B12: 成長 | C12: 0 | D12: 0 | E12: 0 | F12: 0 | G12: 0 | H12: 0 | I12: 0 | L12: 16.8 | M12: 6.3 | N12: 23.1 | O12: 23.1
A13: 3 | B13: 面積 | D13: 16.47 | F13: 0.43 | G13: 15.76 | I13: 32.66 | K13: 0.43 | L13: 13.48 | M13: 0.05 | N13: 13.96 | O13: 46.62
B14: 蓄積 | D14: 803 | F14: 29 | G14: 2422 | H14: 16 | I14: 3270 | K14: 4 | L14: 284 | M14: 1 | N14: 289 | O14: 3559
B15: 成長 | D15: 176.1 | F15: 3.9 | G15: 174 | H15: 2.2 | I15: 356.2 | K15: 0.4 | L15: 24.3 | M15: 0.1 | N15: 24.8 | O15: 381
A16: 4 | B16: 面積 | C16: 0.01 | D16: 34.88 | E16: 0.4 | G16: 57.68 | I16: 92.97 | L16: 8.09 | M16: 16 | N16: 24.09 | O16: 117.06
B17: 蓄積 | C17: 1 | D17: 2899 | E17: 25 | G17: 6771 | I17: 9696 | L17: 233 | M17: 964 | N17: 1197 | O17: 10893
B18: 成長 | C18: 0.1 | D18: 308.9 | E18: 2.8 | G18: 401.7 | I18: 713.5 | L18: 15.6 | M18: 65.7 | N18: 81.3 | O18: 794.8
A19: 5 | B19: 面積 | C19: 0.88 | D19: 39.24 | F19: 2.95 | G19: 12.6 | H19: 2.13 | I19: 57.8 | J19: 0.21 | L19: 7.4 | M19: 49.05 | N19: 56.66 | O19: 114.46
B20: 蓄積 | C20: 195 | D20: 5943 | F20: 364 | G20: 2109 | H20: 472 | I20: 9083 | J20: 8 | L20: 313 | M20: 1927 | N20: 2248 | O20: 11331
B21: 成長 | C21: 10.2 | D21: 422.6 | F21: 18.3 | G21: 97.9 | H21: 33.5 | I21: 582.5 | J21: 0.4 | L21: 17 | M21: 100.1 | N21: 117.5 | O21: 700
A22: 6 | B22: 面積 | C22: 2.29 | D22: 59.8 | E22: 0.55 | F22: 4.43 | G22: 54.19 | H22: 4.8 | I22: 126.06 | L22: 4.25 | M22: 36.43 | N22: 40.68 | O22: 166.74
B23: 蓄積 | C23: 578 | D23: 15624 | E23: 707 | F23: 626 | G23: 11346 | H23: 2374 | I23: 31255 | L23: 324 | M23: 3480 | N23: 3804 | O23: 35059
B24: 成長 | C24: 20.8 | D24: 863.9 | E24: 38.9 | F24: 23.1 | G24: 263 | H24: 125.7 | I24: 1335.4 | L24: 13.3 | M24: 142.4 | N24: 155.7 | O24: 1491.1
A25: 7 | B25: 面積 | C25: 3.19 | D25: 109.21 | E25: 0.66 | F25: 12.18 | G25: 157.14 | H25: 26.65 | I25: 309.03 | K25: 0.44 | L25: 0.12 | M25: 35.47 | N25: 36.03 | O25: 345.06
B26: 蓄積 | C26: 1741 | D26: 29572 | E26: 392 | F26: 1788 | G26: 36517 | H26: 8555 | I26: 78565 | K26: 21 | L26: 568 | M26: 2288 | N26: 2877 | O26: 81442
B27: 成長 | C27: 48.8 | D27: 1333.8 | E27: 17.7 | F27: 47.1 | G27: 805.4 | H27: 371.4 | I27: 2624.2 | K27: 1.2 | L27: 17 | M27: 71 | N27: 89.2 | O27: 2713.4
A28: 8 | B28: 面積 | C28: 2.99 | D28: 131.49 | E28: 0.06 | F28: 19.56 | G28: 320.68 | H28: 7.97 | I28: 482.75 | K28: 0.04 | L28: 0.89 | M28: 6.29 | N28: 7.22 | O28: 489.97
B29: 蓄積 | C29: 1081 | D29: 39556 | E29: 14 | F29: 3386 | G29: 73679 | H29: 11974 | I29: 129690 | K29: 2 | L29: 57 | M29: 396 | N29: 455 | O29: 130145
B30: 成長 | C30: 24.9 | D30: 1467.8 | E30: 0.5 | F30: 69.3 | G30: 1555 | H30: 457.9 | I30: 3575.4 | K30: 0.1 | L30: 1.7 | M30: 12 | N30: 13.8 | O30: 3589.2
A31: 9 | B31: 面積 | C31: 20.57 | D31: 311.73 | E31: 1.03 | F31: 125.31 | G31: 778.38 | H31: 43.8 | I31: 1280.82 | L31: 0.64 | M31: 27.71 | N31: 28.35 | O31: 1309.17
B32: 蓄積 | C32: 6950 | D32: 84052 | E32: 233 | F32: 23914 | G32: 208264 | H32: 10707 | I32: 334120 | L32: 51 | M32: 2098 | N32: 2149 | O32: 336269
B33: 成長 | C33: 128.7 | D33: 2540.2 | E33: 7 | F33: 361.2 | G33: 3810 | H33: 380.1 | I33: 7227.2 | L33: 1.6 | M33: 58.5 | N33: 60.1 | O33: 7287.3
A34: 10 | B34: 面積 | C34: 14.61 | D34: 99.08 | E34: 0.85 | F34: 274.19 | G34: 1420.42 | H34: 20.77 | I34: 1829.92 | M34: 26.43 | N34: 26.43 | O34: 1856.35
B35: 蓄積 | C35: 5884 | D35: 29364 | E35: 242 | F35: 57567 | G35: 415265 | H35: 4158 | I35: 512480 | M35: 2293 | N35: 2293 | O35: 514773
B36: 成長 | C36: 88.5 | D36: 851.6 | E36: 7 | F36: 749.3 | G36: 6258.4 | H36: 122.6 | I36: 8077.4 | M36: 57.4 | N36: 57.4 | O36: 8134.8
A37: 11 | B37: 面積 | C37: 43.98 | D37: 66.39 | E37: 0.47 | F37: 562.69 | G37: 3355.04 | H37: 44.2 | I37: 4072.77 | M37: 14.31 | N37: 14.31 | O37: 4087.08
B38: 蓄積 | C38: 17851 | D38: 22854 | E38: 175 | F38: 122782 | G38: 1027979 | H38: 9663 | I38: 1201304 | M38: 1075 | N38: 1075 | O38: 1202379
B39: 成長 | C39: 232.6 | D39: 550.3 | E39: 4.1 | F39: 1359.4 | G39: 12387.1 | H39: 232.6 | I39: 14766.1 | M39: 20.8 | N39: 20.8 | O39: 14786.9
A40: 12 | B40: 面積 | C40: 85.1 | D40: 15.07 | E40: 0.65 | F40: 912.46 | G40: 5975.32 | H40: 26.62 | I40: 7015.22 | M40: 7.66 | N40: 7.66 | O40: 7022.88
B41: 蓄積 | C41: 36193 | D41: 5304 | E41: 263 | F41: 208543 | G41: 1917505 | H41: 5462 | I41: 2173270 | M41: 362 | N41: 362 | O41: 2173632
B42: 成長 | C42: 401 | D42: 112.1 | E42: 5.4 | F42: 1897.7 | G42: 17641.5 | H42: 113 | I42: 20170.7 | M42: 6.7 | N42: 6.7 | O42: 20177.4
A43: 13 | B43: 面積 | C43: 129.11 | D43: 5.22 | E43: 3.53 | F43: 635.56 | G43: 8778.19 | H43: 11.5 | I43: 9563.11 | L43: 5.82 | M43: 24.59 | N43: 30.41 | O43: 9593.52
B44: 蓄積 | C44: 56146 | D44: 1813 | E44: 1358 | F44: 149226 | G44: 2897283 | H44: 2848 | I44: 3108674 | L44: 905 | M44: 2533 | N44: 3438 | O44: 3112112
B45: 成長 | C45: 590.6 | D45: 38.4 | E45: 25.7 | F45: 1324.5 | G45: 24863.8 | H45: 57.7 | I45: 26900.7 | L45: 11.1 | M45: 38.8 | N45: 49.9 | O45: 26950.6
A46: 14 | B46: 面積 | C46: 59.66 | D46: 5.5 | E46: 16.81 | F46: 258.48 | G46: 10491.59 | H46: 32.05 | I46: 10864.09 | L46: 5.38 | M46: 24.98 | N46: 30.36 | O46: 10894.45
B47: 蓄積 | C47: 27360 | D47: 2241 | E47: 5329 | F47: 61339 | G47: 3592436 | H47: 8886 | I47: 3697591 | L47: 518 | M47: 3089 | N47: 3607 | O47: 3701198
B48: 成長 | C48: 248.8 | D48: 39.7 | E48: 96.3 | F48: 486.8 | G48: 25286.8 | H48: 151.8 | I48: 26310.2 | L48: 7.3 | M48: 29.8 | N48: 37.1 | O48: 26347.3
A49: 15 以上 | B49: 面積 | C49: 81.52 | D49: 124.01 | E49: 63.6 | F49: 65.58 | G49: 9868.37 | H49: 22.65 | I49: 10225.73 | L49: 0.9 | M49: 60.5 | N49: 61.4 | O49: 10287.13
B50: 蓄積 | C50: 38926 | D50: 58217 | E50: 27221 | F50: 16199 | G50: 3377653 | H50: 7030 | I50: 3525246 | L50: 115 | M50: 5271 | N50: 5386 | O50: 3530632
B51: 成長 | C51: 46.1 | D51: 87.8 | E51: 73.8 | F51: 82.4 | G51: 13659.6 | H51: 90.5 | I51: 14040.2 | L51: 0.9 | M51: 28.1 | N51: 29 | O51: 14069.2
A52: 計 | B52: 面積 | C52: =SUM(C7,C10,C13,C16,C19,C22,C25,C28,C31,C34,C37,C40,C43,C46,C49) -> 444 | D52: 1029.62 | E52: 88.92 | F52: 2876.8 | G52: 42124.36 | H52: 243.57 | I52: =SUM(C52:H52) -> 46807.27 | J52: =SUM(J7,J10,J13,J16,J19,J22,J25,J28,J31,J34,J37,J40,J43,J46,J49) -> 0.21 | K52: =SUM(K7,K10,K13,K16,K19,K22,K25,K28,K31,K34,K37,K40,K43,K46,K49) -> 0.91 | L52: =SUM(L7,L10,L13,L16,L19,L22,L25,L28,L31,L34,L37,L40,L43,L46,L49) -> 60.75 | M52: =SUM(M7,M10,M13,M16,M19,M22,M25,M28,M31,M34,M37,M40,M43,M46,M49) -> 342.41 | N52: =SUM(J52:M52) -> 404.28 | O52: 47211.55
B53: 蓄積 | C53: 192906 | D53: 298242 | E53: 35959 | F53: 645763 | G53: 13569229 | H53: 72145 | I53: =SUM(C53:H53) -> 14814244 | J53: =SUM(J8,J11,J14,J17,J20,J23,J26,J29,J32,J35,J38,J41,J44,J47,J50) -> 8 | K53: 27 | L53: 3486 | M53: 25823 | N53: =SUM(J53:M53) -> 29344 | O53: 14843588
B54: 成長 | C54: 1841.1 | D54: 8793.2 | E54: 279.2 | F54: 6423 | G54: 107204.2 | H54: 2139 | I54: =SUM(C54:H54) -> 126679.7 | J54: 0.4 | K54: 1.7 | L54: 126.6 | M54: 637.7 | N54: =SUM(J54:M54) -> 766.4 | O54: 127446.1

Sheet 上田
A1: 第5表 地域振興局別・人工林天然林別・資源構成表
A3: 上田地域振興局(人工林) | O3: 単位 面積 : ha、蓄積 成長量 : ㎥
B4: 樹種 | C4: 針 葉 樹 | J4: 広 葉 樹 | O4: 計
C5: ス ギ | D5: ヒ ノ キ | E5: サ ワ ラ | F5: ア カ マ ツ | G5: カ ラ マ ツ | H5: そ の 他 針 | I5: 小 計 | J5: ク ヌ ギ | K5: ブ ナ | L5: ナ ラ | M5: そ の 他 広 | N5: 小 計
A6: 齢級
A7: 1 | B7: 面積 | C7: 0.07 | D7: 0.03 | F7: 0.21 | G7: 241.99 | I7: 242.3 | L7: 13.71 | M7: 7.88 | N7: 21.59 | O7: =SUM(N7,I7) -> 263.89
B8: 蓄積 | C8: 0 | D8: 0 | F8: 0 | G8: 0 | I8: 0 | L8: 0 | M8: 0 | N8: 0 | O8: =SUM(N8,I8) -> 0
B9: 成長 | C9: 0 | D9: 0 | F9: 0 | G9: 0 | I9: 0 | L9: 0 | M9: 0 | N9: 0 | O9: 0
A10: 2 | B10: 面積 | D10: 3.47 | G10: 128.7 | I10: 132.17 | K10: 0.1 | L10: 6.1 | M10: 45.01 | N10: 51.21 | O10: 183.38
B11: 蓄積 | D11: 0 | G11: 0 | I11: 0 | K11: 0 | L11: 78 | M11: 551 | N11: 629 | O11: 629
B12: 成長 | D12: 0 | G12: 0 | I12: 0 | K12: 0 | L12: 10.9 | M12: 77 | N12: 87.9 | O12: 87.9
A13: 3 | B13: 面積 | D13: 10.98 | F13: 0.13 | G13: 8.58 | I13: 19.69 | L13: 5.83 | M13: 16.19 | N13: 22.02 | O13: 41.71
B14: 蓄積 | D14: 376 | F14: 7 | G14: 660 | I14: 1043 | L14: 141 | M14: 354 | N14: 495 | O14: 1538
B15: 成長 | D15: 84 | F15: 0.9 | G15: 60.5 | I15: 145.4 | L15: 12.3 | M15: 30.9 | N15: 43.2 | O15: 188.6
A16: 4 | B16: 面積 | D16: 38.15 | F16: 0.61 | G16: 9.04 | H16: 0.59 | I16: 48.39 | J16: 1.34 | L16: 3.71 | M16: 23.73 | N16: 28.78 | O16: 77.17
B17: 蓄積 | D17: 3117 | F17: 54 | G17: 1348 | H17: 35 | I17: 4554 | J17: 48 | L17: 116 | M17: 824 | N17: 988 | O17: 5542
B18: 成長 | D18: 328.9 | F18: 4.4 | G18: 78.6 | H18: 2.9 | I18: 414.8 | J18: 3.3 | L18: 8.6 | M18: 56.1 | N18: 68 | O18: 482.8
A19: 5 | B19: 面積 | C19: 1.05 | D19: 70.32 | F19: 1.82 | G19: 38.06 | I19: 111.25 | K19: 3.02 | L19: 6.58 | M19: 34.94 | N19: 44.54 | O19: 155.79
B20: 蓄積 | C20: 219 | D20: 8932 | F20: 201 | G20: 6553 | I20: 15905 | K20: 82 | L20: 660 | M20: 1958 | N20: 2700 | O20: 18605
B21: 成長 | C21: 10.8 | D21: 634.3 | F21: 10.4 | G21: 302.8 | I21: 958.3 | K21: 6.4 | L21: 33.9 | M21: 101.5 | N21: 141.8 | O21: 1100.1
A22: 6 | B22: 面積 | C22: 5.73 | D22: 67.84 | F22: 9.82 | G22: 50.59 | H22: 1.74 | I22: 135.72 | L22: 29.98 | M22: 33.18 | N22: 63.16 | O22: 198.88
B23: 蓄積 | C23: 1895 | D23: 16078 | F23: 1046 | G23: 10221 | H23: 190 | I23: 29430 | J23: 101 | K23: 180 | L23: 1739 | M23: 2274 | N23: 4294 | O23: 33724
B24: 成長 | C24: 68.2 | D24: 888.9 | F24: 41.9 | G24: 234.5 | H24: 10.1 | I24: 1243.6 | J24: 4.2 | K24: 12 | L24: 71.2 | M24: 92.3 | N24: 179.7 | O24: 1423.3
A25: 7 | B25: 面積 | C25: 17.05 | D25: 209.48 | F25: 28.03 | G25: 111.36 | H25: 1.59 | I25: 367.51 | L25: 9.38 | M25: 45.84 | N25: 55.22 | O25: 422.73
B26: 蓄積 | C26: 7336 | D26: 48796 | F26: 4566 | G26: 27110 | H26: 350 | I26: 88158 | K26: 1418 | L26: 837 | M26: 3713 | N26: 5968 | O26: 94126
B27: 成長 | C27: 204.5 | D27: 2197.8 | F27: 109.7 | G27: 597 | H27: 15 | I27: 3124 | K27: 82.3 | L27: 26.2 | M27: 115.3 | N27: 223.8 | O27: 3347.8
A28: 8 | B28: 面積 | C28: 55.42 | D28: 224.66 | F28: 28.82 | G28: 171.97 | H28: 19.9 | I28: 500.77 | L28: 35.11 | M28: 19.49 | N28: 54.6 | O28: 555.37
B29: 蓄積 | C29: 24417 | D29: 61054 | F29: 5456 | G29: 44400 | H29: 3510 | I29: 138837 | L29: 2428 | M29: 1368 | N29: 3796 | O29: 142633
B30: 成長 | C30: 560.6 | D30: 2262.1 | F30: 109.6 | G30: 930.8 | H30: 133.8 | I30: 3996.9 | L30: 73.7 | M30: 41.3 | N30: 115 | O30: 4111.9
A31: 9 | B31: 面積 | C31: 70.73 | D31: 436.95 | F31: 113.13 | G31: 165.11 | H31: 22.51 | I31: 808.43 | L31: 1.22 | M31: 18.53 | N31: 19.75 | O31: 828.18
B32: 蓄積 | C32: 26711 | D32: 118246 | F32: 22388 | G32: 46006 | H32: 4559 | I32: 217910 | L32: 100 | M32: 1485 | N32: 1585 | O32: 219495
B33: 成長 | C33: 481.6 | D33: 3559.1 | F33: 336.9 | G33: 828.9 | H33: 160.1 | I33: 5366.6 | L33: 2.8 | M33: 41.5 | N33: 44.3 | O33: 5410.9
A34: 10 | B34: 面積 | C34: 136.95 | D34: 303.68 | F34: 287.48 | G34: 199.29 | H34: 6.1 | I34: 933.5 | L34: 0.37 | M34: 5.5 | N34: 5.87 | O34: 939.37
B35: 蓄積 | C35: 54276 | D35: 88403 | F35: 60308 | G35: 60795 | H35: 3903 | I35: 267685 | L35: 36 | M35: 444 | N35: 480 | O35: 268165
B36: 成長 | C36: 815.7 | D36: 2558.7 | F36: 786.3 | G36: 912.5 | H36: 116.1 | I36: 5189.3 | L36: 1 | M36: 11.4 | N36: 12.4 | O36: 5201.7
A37: 11 | B37: 面積 | C37: 252.88 | D37: 201.17 | E37: 0.1 | F37: 753.59 | G37: 491.39 | H37: 18.21 | I37: 1717.34 | M37: 1.87 | N37: 1.87 | O37: 1719.21
B38: 蓄積 | C38: 106978 | D38: 66623 | E38: 35 | F38: 166727 | G38: 154872 | H38: 4045 | I38: 499280 | M38: 178 | N38: 178 | O38: 499458
B39: 成長 | C39: 1393.1 | D39: 1599.6 | E39: 0.8 | F39: 1836.2 | G39: 1860.5 | H39: 95.4 | I39: 6785.6 | M39: 3.4 | N39: 3.4 | O39: 6789
A40: 12 | B40: 面積 | C40: 230.44 | D40: 95.81 | E40: 2.46 | F40: 1383.12 | G40: 1531.38 | H40: 6.44 | I40: 3249.65 | M40: 3.51 | N40: 3.51 | O40: 3253.16
B41: 蓄積 | C41: 102828 | D41: 35223 | E41: 936 | F41: 319269 | G41: 509926 | H41: 1809 | I41: 969991 | M41: 320 | N41: 320 | O41: 970311
B42: 成長 | C42: 1135.9 | D42: 740.4 | E42: 19.8 | F42: 2884.8 | G42: 4634.1 | H42: 36.1 | I42: 9451.1 | M42: 5.9 | N42: 5.9 | O42: 9457
A43: 13 | B43: 面積 | C43: 307.86 | D43: 28.96 | E43: 2.94 | F43: 1526.83 | G43: 3263.4 | H43: 29.74 | I43: 5159.73 | L43: 0.27 | M43: 6.37 | N43: 6.64 | O43: 5166.37
B44: 蓄積 | C44: 140296 | D44: 11018 | E44: 1079 | F44: 360487 | G44: 1117813 | H44: 7449 | I44: 1638142 | L44: 33 | M44: 702 | N44: 735 | O44: 1638877
B45: 成長 | C45: 1480.5 | D45: 225.5 | E45: 22.4 | F45: 3195.1 | G45: 9443 | H45: 143.4 | I45: 14509.9 | L45: 0.4 | M45: 11.9 | N45: 12.3 | O45: 14522.2
A46: 14 | B46: 面積 | C46: 375 | D46: 15.47 | E46: 1.12 | F46: 623.35 | G46: 3139.51 | H46: 8.36 | I46: 4162.81 | L46: 0.28 | M46: 27.84 | N46: 28.12 | O46: 4190.93
B47: 蓄積 | C47: 175488 | D47: 6425 | E47: 487 | F47: 150718 | G47: 1106513 | H47: 2727 | I47: 1442358 | L47: 34 | M47: 2688 | N47: 2722 | O47: 1445080
B48: 成長 | C48: 1583.1 | D48: 113.4 | E48: 8.1 | F48: 1182.2 | G48: 7607.7 | H48: 43.2 | I48: 10537.7 | L48: 0.4 | M48: 29.5 | N48: 29.9 | O48: 10567.6
A49: 15 以上 | B49: 面積 | C49: 490.96 | D49: 161.08 | E49: 30.58 | F49: 255.51 | G49: 2880.17 | H49: 3.86 | I49: 3822.16 | J49: 0.16 | L49: 2.41 | M49: 37.86 | N49: 40.43 | O49: 3862.59
B50: 蓄積 | C50: 241639 | D50: 74997 | E50: 14327 | F50: 63690 | G50: 1033902 | H50: 1384 | I50: 1429939 | J50: 21 | L50: 312 | M50: 4059 | N50: 4392 | O50: 1434331
B51: 成長 | C51: 961.8 | D51: 214.2 | E51: 35.1 | F51: 332.1 | G51: 4162.5 | H51: 16.6 | I51: 5722.3 | J51: 0.2 | L51: 2.1 | M51: 19.7 | N51: 22 | O51: 5744.3
A52: 計 | B52: 面積 | C52: =SUM(C7,C10,C13,C16,C19,C22,C25,C28,C31,C34,C37,C40,C43,C46,C49) -> 1944.14 | D52: 1868.05 | E52: 37.2 | F52: 5012.45 | G52: 12430.54 | H52: 119.04 | I52: =SUM(C52:H52) -> 21411.42 | J52: =SUM(J7,J10,J13,J16,J19,J22,J25,J28,J31,J34,J37,J40,J43,J46,J49) -> 1.5 | K52: =SUM(K7,K10,K13,K16,K19,K22,K25,K28,K31,K34,K37,K40,K43,K46,K49) -> 3.12 | L52: =SUM(L7,L10,L13,L16,L19,L22,L25,L28,L31,L34,L37,L40,L43,L46,L49) -> 114.95 | M52: =SUM(M7,M10,M13,M16,M19,M22,M25,M28,M31,M34,M37,M40,M43,M46,M49) -> 327.74 | N52: =SUM(J52:M52) -> 447.31 | O52: 21858.73
B53: 蓄積 | C53: 882083 | D53: 539288 | E53: 16864 | F53: 1154917 | G53: 4120119 | H53: 29961 | I53: =SUM(C53:H53) -> 6743232 | J53: =SUM(J8,J11,J14,J17,J20,J23,J26,J29,J32,J35,J38,J41,J44,J47,J50) -> 170 | K53: 1680 | L53: 6514 | M53: 20918 | N53: =SUM(J53:M53) -> 29282 | O53: 6772514
B54: 成長 | C54: 8695.8 | D54: 15406.9 | E54: 86.2 | F54: 10830.5 | G54: 31653.4 | H54: 772.7 | I54: =SUM(C54:H54) -> 67445.5 | J54: 7.7 | K54: 100.7 | L54: 243.5 | M54: 637.7 | N54: =SUM(J54:M54) -> 989.6 | O54: 68435.1

Sheet 諏訪
A1: 第5表 地域振興局別・人工林天然林別・資源構成表
A3: 諏訪地域振興局(人工林) | O3: 単位 面積 : ha、蓄積 成長量 : ㎥
B4: 樹種 | C4: 針 葉 樹 | J4: 広 葉 樹 | O4: 計
C5: ス ギ | D5: ヒ ノ キ | E5: サ ワ ラ | F5: ア カ マ ツ | G5: カ ラ マ ツ | H5: そ の 他 針 | I5: 小 計 | J5: ク ヌ ギ | K5: ブ ナ | L5: ナ ラ | M5: そ の 他 広 | N5: 小 計
A6: 齢級
A7: 1 | B7: 面積 | G7: 17.27 | I7: 17.27 | L7: 1.15 | N7: 1.15 | O7: =SUM(N7,I7) -> 18.42
B8: 蓄積 | G8: 0 | I8: 0 | L8: 0 | N8: 0 | O8: =SUM(N8,I8) -> 0
B9: 成長 | G9: 0 | I9: 0 | L9: 0 | N9: 0 | O9: 0
A10: 2 | B10: 面積 | D10: 3.15 | E10: 0.03 | F10: 15.13 | G10: 30.85 | I10: 49.16 | L10: 4.44 | M10: 1.52 | N10: 5.96 | O10: 55.12
B11: 蓄積 | D11: 0 | E11: 0 | F11: 0 | G11: 0 | I11: 0 | L11: 39 | M11: 15 | N11: 54 | O11: 54
B12: 成長 | D12: 0 | E12: 0 | F12: 0 | G12: 0 | I12: 0 | L12: 5 | M12: 2.2 | N12: 7.2 | O12: 7.2
A13: 3 | B13: 面積 | G13: 4.57 | I13: 4.57 | M13: 0.22 | N13: 0.22 | O13: 4.79
B14: 蓄積 | G14: 155 | I14: 155 | M14: 2 | N14: 2 | O14: 157
B15: 成長 | G15: 6.8 | I15: 6.8 | M15: 0.2 | N15: 0.2 | O15: 7
A16: 4 | B16: 面積 | C16: 0.14 | D16: 0.34 | G16: 14.61 | I16: 15.09 | M16: 4.89 | N16: 4.89 | O16: 19.98
B17: 蓄積 | C17: 14 | D17: 346 | E17: 88 | G17: 1033 | I17: 1481 | M17: 160 | N17: 160 | O17: 1641
B18: 成長 | C18: 1.2 | D18: 31.5 | E18: 8 | G18: 62 | I18: 102.7 | M18: 10.8 | N18: 10.8 | O18: 113.5
A19: 5 | B19: 面積 | C19: 0.04 | D19: 0.91 | F19: 0.49 | G19: 0.28 | H19: 1.26 | I19: 2.98 | M19: 0.49 | N19: 0.49 | O19: 3.47
B20: 蓄積 | C20: 6 | D20: 3326 | F20: 2558 | G20: 33 | H20: 850 | I20: 6773 | M20: 1129 | N20: 1129 | O20: 7902
B21: 成長 | C21: 0.3 | D21: 193.9 | F21: 128.4 | G21: 1.5 | H21: 55.2 | I21: 379.3 | M21: 57.4 | N21: 57.4 | O21: 436.7
A22: 6 | B22: 面積 | C22: 0.51 | D22: 12.8 | F22: 1.77 | G22: 0.25 | H22: 1.54 | I22: 16.87 | L22: 3.63 | M22: 1.59 | N22: 5.22 | O22: 22.09
B23: 蓄積 | C23: 145 | D23: 8179 | F23: 168 | G23: 235 | H23: 3071 | I23: 11798 | L23: 1911 | M23: 726 | N23: 2637 | O23: 14435
B24: 成長 | C24: 5.3 | D24: 352.7 | F24: 7.6 | G24: 5.3 | H24: 154.6 | I24: 525.5 | L24: 73.3 | M24: 29.3 | N24: 102.6 | O24: 628.1
A25: 7 | B25: 面積 | C25: 0.42 | D25: 23.84 | G25: 3.34 | H25: 3.39 | I25: 30.99 | L25: 0.86 | M25: 1.2 | N25: 2.06 | O25: 33.05
B26: 蓄積 | C26: 99 | D26: 12056 | E26: 88 | F26: 126 | G26: 551 | H26: 1715 | I26: 14635 | L26: 185 | M26: 1212 | N26: 1397 | O26: 16032
B27: 成長 | C27: 2.5 | D27: 391.1 | E27: 2.8 | F27: 3 | G27: 12.1 | H27: 80.3 | I27: 491.8 | L27: 6.4 | M27: 37.5 | N27: 43.9 | O27: 535.7
A28: 8 | B28: 面積 | C28: 0.66 | D28: 82.36 | E28: 0.24 | F28: 4.61 | G28: 16.44 | H28: 22.88 | I28: 127.19 | M28: 4.34 | N28: 4.34 | O28: 131.53
B29: 蓄積 | C29: 189 | D29: 34669 | E29: 44 | F29: 819 | G29: 3452 | H29: 3500 | I29: 42673 | M29: 690 | N29: 690 | O29: 43363
B30: 成長 | C30: 4.3 | D30: 904.6 | E30: 1.2 | F30: 16.4 | G30: 75.9 | H30: 130.8 | I30: 1133.2 | M30: 20.8 | N30: 20.8 | O30: 1154
A31: 9 | B31: 面積 | C31: 2.91 | D31: 170.34 | E31: 1.76 | F31: 17.46 | G31: 34.4 | H31: 88.43 | I31: 315.3 | M31: 0.65 | N31: 0.65 | O31: 315.95
B32: 蓄積 | C32: 818 | D32: 41432 | E32: 367 | F32: 3344 | G32: 6942 | H32: 9668 | I32: 62571 | M32: 92 | N32: 92 | O32: 62663
B33: 成長 | C33: 14.4 | D33: 880.1 | E33: 7.9 | F33: 51.2 | G33: 129.5 | H33: 310.1 | I33: 1393.2 | M33: 2.4 | N33: 2.4 | O33: 1395.6
A34: 10 | B34: 面積 | C34: 7.63 | D34: 175.41 | E34: 1.93 | F34: 86.96 | G34: 136.41 | H34: 54.55 | I34: 462.89 | M34: 1.97 | N34: 1.97 | O34: 464.86
B35: 蓄積 | C35: 2286 | D35: 41782 | E35: 446 | F35: 17294 | G35: 32131 | H35: 6264 | I35: 100203 | M35: 162 | N35: 162 | O35: 100365
B36: 成長 | C36: 32.3 | D36: 770.6 | E36: 7.9 | F36: 231 | G36: 485.6 | H36: 181.4 | I36: 1708.8 | M36: 4.1 | N36: 4.1 | O36: 1712.9
A37: 11 | B37: 面積 | C37: 6.68 | D37: 94.28 | E37: 1.11 | F37: 243.15 | G37: 619.07 | H37: 73.7 | I37: 1037.99 | M37: 2.55 | N37: 2.55 | O37: 1040.54
B38: 蓄積 | C38: 2208 | D38: 23254 | E38: 274 | F38: 51151 | G38: 152185 | H38: 10870 | I38: 239942 | M38: 190 | N38: 190 | O38: 240132
B39: 成長 | C39: 30 | D39: 374.9 | E39: 4.2 | F39: 569.7 | G39: 2134.9 | H39: 222.5 | I39: 3336.2 | M39: 3.4 | N39: 3.4 | O39: 3339.6
A40: 12 | B40: 面積 | C40: 14.25 | D40: 28.12 | E40: 2.19 | F40: 428.92 | G40: 2099.82 | H40: 38.51 | I40: 2611.81 | L40: 1.47 | M40: 3.86 | N40: 5.33 | O40: 2617.14
B41: 蓄積 | C41: 4850 | D41: 7450 | E41: 558 | F41: 96364 | G41: 551350 | H41: 6029 | I41: 666601 | L41: 133 | M41: 339 | N41: 472 | O41: 667073
B42: 成長 | C42: 61.8 | D42: 105.6 | E42: 7.8 | F42: 880.8 | G42: 7068.6 | H42: 116.2 | I42: 8240.8 | L42: 1.8 | M42: 6.7 | N42: 8.5 | O42: 8249.3
A43: 13 | B43: 面積 | C43: 25.31 | D43: 16.97 | E43: 5.72 | F43: 337.65 | G43: 3699.27 | H43: 95.94 | I43: 4180.86 | M43: 2.42 | N43: 2.42 | O43: 4183.28
B44: 蓄積 | C44: 8767 | D44: 4480 | E44: 1440 | F44: 76964 | G44: 987174 | H44: 15580 | I44: 1094405 | M44: 224 | N44: 224 | O44: 1094629
B45: 成長 | C45: 110.9 | D45: 63 | E45: 19.6 | F45: 691.5 | G45: 12197.7 | H45: 290 | I45: 13372.7 | M45: 3.5 | N45: 3.5 | O45: 13376.2
A46: 14 | B46: 面積 | C46: 40 | D46: 51.55 | E46: 29.22 | F46: 224.02 | G46: 5253.28 | H46: 153.18 | I46: 5751.25 | M46: 4.44 | N46: 4.44 | O46: 5755.69
B47: 蓄積 | C47: 14483 | D47: 14638 | E47: 8119 | F47: 53239 | G47: 1470017 | H47: 25843 | I47: 1586339 | M47: 404 | N47: 404 | O47: 1586743
B48: 成長 | C48: 144.1 | D48: 172.9 | E48: 96.7 | F48: 430.3 | G48: 15406.4 | H48: 415.9 | I48: 16666.3 | M48: 3.6 | N48: 3.6 | O48: 16669.9
A49: 15 以上 | B49: 面積 | C49: 121.66 | D49: 319.7 | E49: 196.56 | F49: 162.01 | G49: 6212.26 | H49: 178.49 | I49: 7190.68 | L49: 0.17 | M49: 37.25 | N49: 37.42 | O49: 7228.1
B50: 蓄積 | C50: 47751 | D50: 95260 | E50: 57521 | F50: 38954 | G50: 1787733 | H50: 34087 | I50: 2061306 | L50: 9 | M50: 3527 | N50: 3536 | O50: 2064842
B51: 成長 | C51: 138.1 | D51: 310 | E51: 109 | F51: 198.8 | G51: 10120 | H51: 303.6 | I51: 11179.5 | L51: 0 | M51: 7.5 | N51: 7.5 | O51: 11187
A52: 計 | B52: 面積 | C52: =SUM(C7,C10,C13,C16,C19,C22,C25,C28,C31,C34,C37,C40,C43,C46,C49) -> 220.21 | D52: 979.77 | E52: 238.76 | F52: 1522.17 | G52: 18142.12 | H52: 711.87 | I52: =SUM(C52:H52) -> 21814.9 | J52: =SUM(J7,J10,J13,J16,J19,J22,J25,J28,J31,J34,J37,J40,J43,J46,J49) -> 0 | K52: =SUM(K7,K10,K13,K16,K19,K22,K25,K28,K31,K34,K37,K40,K43,K46,K49) -> 0 | L52: =SUM(L7,L10,L13,L16,L19,L22,L25,L28,L31,L34,L37,L40,L43,L46,L49) -> 11.72 | M52: =SUM(M7,M10,M13,M16,M19,M22,M25,M28,M31,M34,M37,M40,M43,M46,M49) -> 67.39 | N52: =SUM(J52:M52) -> 79.11 | O52: 21894.01
B53: 蓄積 | C53: 81616 | D53: 286872 | E53: 68945 | F53: 340981 | G53: 4992991 | H53: 117477 | I53: =SUM(C53:H53) -> 5888882 | J53: =SUM(J8,J11,J14,J17,J20,J23,J26,J29,J32,J35,J38,J41,J44,J47,J50) -> 0 | K53: 0 | L53: 2277 | M53: 8872 | N53: =SUM(J53:M53) -> 11149 | O53: 5900031
B54: 成長 | C54: 545.2 | D54: 4550.9 | E54: 265.1 | F54: 3208.7 | G54: 47706.3 | H54: 2260.6 | I54: =SUM(C54:H54) -> 58536.8 | J54: 0 | K54: 0 | L54: 86.5 | M54: 189.4 | N54: =SUM(J54:M54) -> 275.9 | O54: 58812.7

Sheet 上伊那
A1: 第5表 地域振興局別・人工林天然林別・資源構成表
A3: 上伊那地域振興局(人工林) | O3: 単位 面積 : ha、蓄積 成長量 : ㎥
B4: 樹種 | C4: 針 葉 樹 | J4: 広 葉 樹 | O4: 計
C5: ス ギ | D5: ヒ ノ キ | E5: サ ワ ラ | F5: ア カ マ ツ | G5: カ ラ マ ツ | H5: そ の 他 針 | I5: 小 計 | J5: ク ヌ ギ | K5: ブ ナ | L5: ナ ラ | M5: そ の 他 広 | N5: 小 計
A6: 齢級
A7: 1 | B7: 面積 | C7: 0.29 | D7: 19.81 | G7: 24.94 | I7: 45.04 | L7: 17.65 | M7: 5.37 | N7: 23.02 | O7: =SUM(N7,I7) -> 68.06
B8: 蓄積 | C8: 0 | D8: 0 | G8: 0 | I8: 0 | L8: 0 | M8: 0 | N8: 0 | O8: =SUM(N8,I8) -> 0
B9: 成長 | C9: 0 | D9: 0 | G9: 0 | I9: 0 | L9: 0 | M9: 0 | N9: 0 | O9: 0
A10: 2 | B10: 面積 | C10: 1.65 | D10: 21.63 | E10: 0.37 | G10: 22.18 | I10: 45.83 | L10: 7.4 | M10: 9.68 | N10: 17.08 | O10: 62.91
B11: 蓄積 | C11: 0 | D11: 0 | E11: 0 | G11: 0 | I11: 0 | J11: 10 | L11: 95 | M11: 133 | N11: 238 | O11: 238
B12: 成長 | C12: 0 | D12: 0 | E12: 0 | G12: 0 | I12: 0 | J12: 2.4 | L12: 11.8 | M12: 18.7 | N12: 32.9 | O12: 32.9
A13: 3 | B13: 面積 | D13: 13.22 | F13: 0.19 | G13: 0.72 | H13: 0.11 | I13: 14.24 | L13: 0.09 | M13: 0.53 | N13: 0.62 | O13: 14.86
B14: 蓄積 | D14: 549 | F14: 5 | G14: 67 | H14: 2 | I14: 623 | L14: 2 | M14: 11 | N14: 13 | O14: 636
B15: 成長 | D15: 105.6 | F15: 0.7 | G15: 5.6 | H15: 0.3 | I15: 112.2 | L15: 0.2 | M15: 1 | N15: 1.2 | O15: 113.4
A16: 4 | B16: 面積 | D16: 47.13 | E16: 0.11 | F16: 0.14 | G16: 24.11 | H16: 0.5 | I16: 71.99 | K16: 0.61 | L16: 18.03 | M16: 10.13 | N16: 28.77 | O16: 100.76
B17: 蓄積 | D17: 4289 | E17: 7 | F17: 2 | G17: 2200 | H17: 17 | I17: 6515 | K17: 10 | L17: 581 | M17: 420 | N17: 1011 | O17: 7526
B18: 成長 | D18: 392 | E18: 0.6 | F18: 0.2 | G18: 129.7 | H18: 1.4 | I18: 523.9 | K18: 0.9 | L18: 38.8 | M18: 28.4 | N18: 68.1 | O18: 592
A19: 5 | B19: 面積 | C19: 0.16 | D19: 151.09 | F19: 0.46 | G19: 26.27 | H19: 0.13 | I19: 178.11 | J19: 0.42 | L19: 0.84 | M19: 5.88 | N19: 7.14 | O19: 185.25
B20: 蓄積 | C20: 28 | D20: 16616 | F20: 28 | G20: 3318 | H20: 76 | I20: 20066 | J20: 28 | K20: 1 | L20: 35 | M20: 282 | N20: 346 | O20: 20412
B21: 成長 | C21: 1.4 | D21: 967.6 | F21: 1.6 | G21: 156.7 | H21: 5.2 | I21: 1132.5 | J21: 0.9 | K21: 0.1 | L21: 1.7 | M21: 14.8 | N21: 17.5 | O21: 1150
A22: 6 | B22: 面積 | C22: 0.21 | D22: 162.54 | F22: 1.75 | G22: 104.52 | H22: 1.6 | I22: 270.62 | M22: 2.41 | N22: 2.41 | O22: 273.03
B23: 蓄積 | C23: 41 | D23: 30332 | F23: 208 | G23: 15059 | H23: 873 | I23: 46513 | M23: 129 | N23: 129 | O23: 46642
B24: 成長 | C24: 1.5 | D24: 1305.1 | F24: 7.7 | G24: 348.9 | H24: 43.8 | I24: 1707 | M24: 5.2 | N24: 5.2 | O24: 1712.2
A25: 7 | B25: 面積 | C25: 1.33 | D25: 281.41 | F25: 9.9 | G25: 104.14 | H25: 3.89 | I25: 400.67 | K25: 1.56 | L25: 0.08 | M25: 3.49 | N25: 5.13 | O25: 405.8
B26: 蓄積 | C26: 304 | D26: 62828 | F26: 1660 | G26: 18506 | H26: 287 | I26: 83585 | K26: 37 | L26: 5 | M26: 373 | N26: 415 | O26: 84000
B27: 成長 | C27: 7.7 | D27: 2034.8 | F27: 39.9 | G27: 409.4 | H27: 13 | I27: 2504.8 | K27: 2.1 | L27: 0.2 | M27: 11.4 | N27: 13.7 | O27: 2518.5
A28: 8 | B28: 面積 | C28: 8.36 | D28: 339.4 | F28: 39.4 | G28: 205.27 | H28: 28.48 | I28: 620.91 | J28: 0.42 | M28: 4.5 | N28: 4.92 | O28: 625.83
B29: 蓄積 | C29: 2460 | D29: 70826 | F29: 8632 | G29: 41270 | H29: 3721 | I29: 126909 | J29: 37 | M29: 314 | N29: 351 | O29: 127260
B30: 成長 | C30: 56.9 | D30: 1851.3 | F30: 177 | G30: 872.1 | H30: 137.7 | I30: 3095 | J30: 0.1 | M30: 9.3 | N30: 9.4 | O30: 3104.4
A31: 9 | B31: 面積 | C31: 17.56 | D31: 524.27 | F31: 93.05 | G31: 327.98 | H31: 52.84 | I31: 1015.7 | M31: 14.66 | N31: 14.66 | O31: 1030.36
B32: 蓄積 | C32: 4976 | D32: 113541 | F32: 17176 | G32: 64170 | H32: 6000 | I32: 205863 | M32: 1047 | N32: 1047 | O32: 206910
B33: 成長 | C33: 86.6 | D33: 2396.6 | F33: 265.3 | G33: 1177.8 | H33: 183.1 | I33: 4109.4 | M33: 28.6 | N33: 28.6 | O33: 4138
A34: 10 | B34: 面積 | C34: 28.71 | D34: 808.26 | E34: 3.18 | F34: 364.26 | G34: 865.98 | H34: 121.11 | I34: 2191.5 | M34: 12.2 | N34: 12.2 | O34: 2203.7
B35: 蓄積 | C35: 8687 | D35: 184992 | E35: 748 | F35: 74647 | G35: 192360 | H35: 15394 | I35: 476828 | M35: 1065 | N35: 1065 | O35: 477893
B36: 成長 | C36: 122.3 | D36: 3354.1 | E36: 13.5 | F36: 984 | G36: 2917.3 | H36: 456.4 | I36: 7847.6 | M36: 27.1 | N36: 27.1 | O36: 7874.7
A37: 11 | B37: 面積 | C37: 51.45 | D37: 837.07 | E37: 10.96 | F37: 1133.07 | G37: 1555.78 | H37: 31.9 | I37: 3620.23 | M37: 45.43 | N37: 45.43 | O37: 3665.66
B38: 蓄積 | C38: 16643 | D38: 207666 | E38: 2004 | F38: 249215 | G38: 386922 | H38: 4349 | I38: 866799 | M38: 4286 | N38: 4286 | O38: 871085
B39: 成長 | C39: 230.7 | D39: 3336.2 | E39: 32 | F39: 2749.3 | G39: 5418.2 | H39: 94.4 | I39: 11860.8 | M39: 83.8 | N39: 83.8 | O39: 11944.6
A40: 12 | B40: 面積 | C40: 147.74 | D40: 368.23 | E40: 1 | F40: 2450.03 | G40: 3789 | H40: 13.67 | I40: 6769.67 | M40: 24.96 | N40: 24.96 | O40: 6794.63
B41: 蓄積 | C41: 50820 | D41: 97686 | E41: 248 | F41: 561336 | G41: 978355 | H41: 2106 | I41: 1690551 | M41: 2662 | N41: 2662 | O41: 1693213
B42: 成長 | C42: 656.9 | D42: 1374.7 | E42: 3.4 | F42: 5096.9 | G42: 12482.1 | H42: 40.6 | I42: 19654.6 | M42: 53.4 | N42: 53.4 | O42: 19708
A43: 13 | B43: 面積 | C43: 242.12 | D43: 266.25 | E43: 0.93 | F43: 2380.27 | G43: 5691.16 | H43: 36.51 | I43: 8617.24 | M43: 4.49 | N43: 4.49 | O43: 8621.73
B44: 蓄積 | C44: 85465 | D44: 76207 | E44: 252 | F44: 553478 | G44: 1466792 | H44: 4842 | I44: 2187036 | M44: 525 | N44: 525 | O44: 2187561
B45: 成長 | C45: 1061.9 | D45: 1053.6 | E45: 3.6 | F45: 4976.9 | G45: 18152.1 | H45: 94.7 | I45: 25342.8 | M45: 8.6 | N45: 8.6 | O45: 25351.4
A46: 14 | B46: 面積 | C46: 462.51 | D46: 337.34 | E46: 9.99 | F46: 2118.66 | G46: 6654.22 | H46: 21.94 | I46: 9604.66 | M46: 18.89 | N46: 18.89 | O46: 9623.55
B47: 蓄積 | C47: 169070 | D47: 91087 | E47: 2759 | F47: 513437 | G47: 1921616 | H47: 3832 | I47: 2701801 | M47: 1471 | N47: 1471 | O47: 2703272
B48: 成長 | C48: 1684 | D48: 1091.7 | E48: 33.7 | F48: 4121.6 | G48: 20473.8 | H48: 61.7 | I48: 27466.5 | M48: 15.7 | N48: 15.7 | O48: 27482.2
A49: 15 以上 | B49: 面積 | C49: 518.44 | D49: 1282.41 | E49: 55.93 | F49: 738.78 | G49: 6552.59 | H49: 43.91 | I49: 9192.06 | J49: 0.1 | M49: 44.93 | N49: 45.03 | O49: 9237.09
B50: 蓄積 | C50: 202090 | D50: 395247 | E50: 17136 | F50: 185505 | G50: 1967006 | H50: 8954 | I50: 2775938 | J50: 5 | M50: 5311 | N50: 5316 | O50: 2781254
B51: 成長 | C51: 912.8 | D51: 1102.8 | E51: 28.3 | F51: 1163.9 | G51: 13538.6 | H51: 95.5 | I51: 16841.9 | J51: 0 | M51: 17.3 | N51: 17.3 | O51: 16859.2
A52: 計 | B52: 面積 | C52: =SUM(C7,C10,C13,C16,C19,C22,C25,C28,C31,C34,C37,C40,C43,C46,C49) -> 1480.53 | D52: 5460.06 | E52: 82.47 | F52: 9329.96 | G52: 25948.86 | H52: 356.59 | I52: =SUM(C52:H52) -> 42658.47 | J52: =SUM(J7,J10,J13,J16,J19,J22,J25,J28,J31,J34,J37,J40,J43,J46,J49) -> 0.94 | K52: =SUM(K7,K10,K13,K16,K19,K22,K25,K28,K31,K34,K37,K40,K43,K46,K49) -> 2.17 | L52: =SUM(L7,L10,L13,L16,L19,L22,L25,L28,L31,L34,L37,L40,L43,L46,L49) -> 44.09 | M52: =SUM(M7,M10,M13,M16,M19,M22,M25,M28,M31,M34,M37,M40,M43,M46,M49) -> 207.55 | N52: =SUM(J52:M52) -> 254.75 | O52: 42913.22
B53: 蓄積 | C53: 540584 | D53: 1351866 | E53: 23154 | F53: 2165329 | G53: 7057641 | H53: 50453 | I53: =SUM(C53:H53) -> 11189027 | J53: =SUM(J8,J11,J14,J17,J20,J23,J26,J29,J32,J35,J38,J41,J44,J47,J50) -> 80 | K53: 48 | L53: 718 | M53: 18029 | N53: =SUM(J53:M53) -> 18875 | O53: 11207902
B54: 成長 | C54: 4822.7 | D54: 20366.1 | E54: 115.1 | F54: 19585 | G54: 76082.3 | H54: 1227.8 | I54: =SUM(C54:H54) -> 122199 | J54: 3.4 | K54: 3.1 | L54: 52.7 | M54: 323.3 | N54: =SUM(J54:M54) -> 382.5 | O54: 122581.5

Sheet 南信州
A1: 第5表 地域振興局別・人工林天然林別・資源構成表
A3: 南信州地域振興局(人工林) | O3: 単位 面積 : ha、蓄積 成長量 : ㎥
B4: 樹種 | C4: 針 葉 樹 | J4: 広 葉 樹 | O4: 計
C5: ス ギ | D5: ヒ ノ キ | E5: サ ワ ラ | F5: ア カ マ ツ | G5: カ ラ マ ツ | H5: そ の 他 針 | I5: 小 計 | J5: ク ヌ ギ | K5: ブ ナ | L5: ナ ラ | M5: そ の 他 広 | N5: 小 計
A6: 齢級
A7: 1 | B7: 面積 | C7: 4.25 | D7: 18.42 | F7: 0.51 | G7: 16.37 | I7: 39.55 | L7: 0.44 | M7: 3.48 | N7: 3.92 | O7: =SUM(N7,I7) -> 43.47
B8: 蓄積 | C8: 0 | D8: 0 | F8: 0 | G8: 0 | I8: 0 | L8: 0 | M8: 0 | N8: 0 | O8: =SUM(N8,I8) -> 0
B9: 成長 | C9: 0 | D9: 0 | F9: 0 | G9: 0 | I9: 0 | L9: 0 | M9: 0 | N9: 0 | O9: 0
A10: 2 | B10: 面積 | C10: 1.85 | D10: 26.05 | G10: 14.87 | H10: 0.22 | I10: 42.99 | L10: 8.36 | M10: 15.38 | N10: 23.74 | O10: 66.73
B11: 蓄積 | C11: 0 | D11: 0 | G11: 0 | H11: 0 | I11: 0 | L11: 118 | M11: 212 | N11: 330 | O11: 330
B12: 成長 | C12: 0 | D12: 0 | G12: 0 | H12: 0 | I12: 0 | L12: 17 | M12: 30.6 | N12: 47.6 | O12: 47.6
A13: 3 | B13: 面積 | C13: 1.69 | D13: 18.42 | I13: 20.11 | L13: 4.02 | M13: 0.75 | N13: 4.77 | O13: 24.88
B14: 蓄積 | C14: 176 | D14: 845 | I14: 1021 | L14: 86 | M14: 13 | N14: 99 | O14: 1120
B15: 成長 | C15: 35.7 | D15: 183.2 | I15: 218.9 | L15: 7.3 | M15: 1.2 | N15: 8.5 | O15: 227.4
A16: 4 | B16: 面積 | C16: 8.83 | D16: 278.27 | E16: 7.89 | F16: 3.38 | G16: 2.43 | H16: 0.63 | I16: 301.43 | L16: 10.55 | M16: 20.6 | N16: 31.15 | O16: 332.58
B17: 蓄積 | C17: 1085 | D17: 22139 | E17: 649 | F17: 278 | G17: 711 | H17: 22 | I17: 24884 | L17: 352 | M17: 627 | N17: 979 | O17: 25863
B18: 成長 | C18: 87.1 | D18: 2031.4 | E18: 60.7 | F18: 22.8 | G18: 53.4 | H18: 1.8 | I18: 2257.2 | L18: 23.1 | M18: 41.2 | N18: 64.3 | O18: 2321.5
A19: 5 | B19: 面積 | C19: 7.61 | D19: 340.74 | E19: 1.36 | F19: 1.35 | G19: 0.21 | H19: 0.27 | I19: 351.54 | K19: 0.56 | L19: 9.18 | M19: 26.06 | N19: 35.8 | O19: 387.34
B20: 蓄積 | C20: 2064 | D20: 48065 | E20: 100 | F20: 151 | G20: 27 | H20: 14 | I20: 50421 | K20: 15 | L20: 363 | M20: 1985 | N20: 2363 | O20: 52784
B21: 成長 | C21: 101.5 | D21: 2941.3 | E21: 6.7 | F21: 7.9 | G21: 1.5 | H21: 1 | I21: 3059.9 | K21: 1.1 | L21: 17.3 | M21: 96.2 | N21: 114.6 | O21: 3174.5
A22: 6 | B22: 面積 | C22: 18.17 | D22: 720.47 | E22: 0.05 | F22: 9.54 | G22: 5.15 | H22: 3.22 | I22: 756.6 | L22: 3.27 | M22: 25.16 | N22: 28.43 | O22: 785.03
B23: 蓄積 | C23: 7275 | D23: 118012 | E23: 6 | F23: 779 | G23: 785 | H23: 156 | I23: 127013 | L23: 469 | M23: 1289 | N23: 1758 | O23: 128771
B24: 成長 | C24: 269.2 | D24: 4977.4 | E24: 0.3 | F24: 28.7 | G24: 28.2 | H24: 8.4 | I24: 5312.2 | L24: 17.9 | M24: 49.2 | N24: 67.1 | O24: 5379.3
A25: 7 | B25: 面積 | C25: 17.33 | D25: 1380.47 | E25: 0.51 | F25: 6.31 | G25: 12.02 | H25: 4.88 | I25: 1421.52 | L25: 17.34 | M25: 2.6 | N25: 19.94 | O25: 1441.46
B26: 蓄積 | C26: 6320 | D26: 253780 | E26: 60 | F26: 1015 | G26: 1887 | H26: 1014 | I26: 264076 | L26: 1796 | M26: 1059 | N26: 2855 | O26: 266931
B27: 成長 | C27: 165.2 | D27: 8677.2 | E27: 2.2 | F27: 24.3 | G27: 52.9 | H27: 44.5 | I27: 8966.3 | L27: 57.6 | M27: 34 | N27: 91.6 | O27: 9057.9
A28: 8 | B28: 面積 | C28: 29.91 | D28: 2159.06 | E28: 0.07 | F28: 6.31 | G28: 72.99 | H28: 40.6 | I28: 2308.94 | L28: 20.15 | M28: 12.47 | N28: 32.62 | O28: 2341.56
B29: 蓄積 | C29: 8170 | D29: 404702 | E29: 12 | F29: 1160 | G29: 16846 | H29: 7282 | I29: 438172 | L29: 1442 | M29: 858 | N29: 2300 | O29: 440472
B30: 成長 | C30: 188.8 | D30: 10672.6 | E30: 0.3 | F30: 23.2 | G30: 417.6 | H30: 269.2 | I30: 11571.7 | L30: 41.9 | M30: 24.4 | N30: 66.3 | O30: 11638
A31: 9 | B31: 面積 | C31: 108.32 | D31: 2872.41 | E31: 2.09 | F31: 34.15 | G31: 227.23 | H31: 51.75 | I31: 3295.95 | L31: 8.11 | M31: 6.06 | N31: 14.17 | O31: 3310.12
B32: 蓄積 | C32: 34443 | D32: 598621 | E32: 349 | F32: 6586 | G32: 46270 | H32: 7199 | I32: 693468 | L32: 664 | M32: 418 | N32: 1082 | O32: 694550
B33: 成長 | C33: 583.2 | D33: 13170.3 | E33: 7.6 | F33: 99.6 | G33: 912.9 | H33: 237.5 | I33: 15011.1 | L33: 17.5 | M33: 11.3 | N33: 28.8 | O33: 15039.9
A34: 10 | B34: 面積 | C34: 298.48 | D34: 4131.28 | E34: 1.87 | F34: 235.34 | G34: 708.17 | H34: 115.72 | I34: 5490.86 | M34: 12.52 | N34: 12.52 | O34: 5503.38
B35: 蓄積 | C35: 98130 | D35: 924426 | E35: 432 | F35: 47850 | G35: 158869 | H35: 13144 | I35: 1242851 | M35: 922 | N35: 922 | O35: 1243773
B36: 成長 | C36: 1428.4 | D36: 16719.7 | E36: 7.8 | F36: 589 | G36: 2376.2 | H36: 361 | I36: 21482.1 | M36: 22 | N36: 22 | O36: 21504.1
A37: 11 | B37: 面積 | C37: 647.16 | D37: 3987.63 | E37: 4.89 | F37: 1019.09 | G37: 1267.61 | H37: 134.06 | I37: 7060.44 | M37: 29.24 | N37: 29.24 | O37: 7089.68
B38: 蓄積 | C38: 226977 | D38: 974929 | E38: 1186 | F38: 218439 | G38: 319091 | H38: 18558 | I38: 1759180 | M38: 2271 | N38: 2271 | O38: 1761451
B39: 成長 | C39: 2992.4 | D39: 15705.2 | E39: 19.6 | F39: 2453.2 | G39: 4461.3 | H39: 440.2 | I39: 26071.9 | M39: 42.3 | N39: 42.3 | O39: 26114.2
A40: 12 | B40: 面積 | C40: 1625.76 | D40: 2575.04 | E40: 2.46 | F40: 3481.83 | G40: 2742.59 | H40: 34.08 | I40: 10461.76 | M40: 75.58 | N40: 75.58 | O40: 10537.34
B41: 蓄積 | C41: 597218 | D41: 666257 | E41: 647 | F41: 778268 | G41: 721589 | H41: 4836 | I41: 2768815 | M41: 4298 | N41: 4298 | O41: 2773113
B42: 成長 | C42: 7412 | D42: 8787.1 | E42: 8.3 | F42: 8636.8 | G42: 9242.8 | H42: 92.1 | I42: 34179.1 | M42: 82.1 | N42: 82.1 | O42: 34261.2
A43: 13 | B43: 面積 | C43: 2497.28 | D43: 1873.74 | E43: 3.8 | F43: 2938.83 | G43: 3697.25 | H43: 17.94 | I43: 11028.84 | L43: 0.04 | M43: 35.17 | N43: 35.21 | O43: 11064.05
B44: 蓄積 | C44: 932354 | D44: 504384 | E44: 1042 | F44: 679820 | G44: 996738 | H44: 2666 | I44: 3117004 | L44: 5 | M44: 3026 | N44: 3031 | O44: 3120035
B45: 成長 | C45: 11053.3 | D45: 6520.2 | E45: 13.3 | F45: 7271.9 | G45: 12450 | H45: 48.4 | I45: 37357.1 | L45: 0.1 | M45: 49.6 | N45: 49.7 | O45: 37406.8
A46: 14 | B46: 面積 | C46: 2618.98 | D46: 1465.75 | E46: 1.35 | F46: 1010.72 | G46: 4017.73 | H46: 21.05 | I46: 9135.58 | L46: 1 | M46: 59.53 | N46: 60.53 | O46: 9196.11
B47: 蓄積 | C47: 1052282 | D47: 413570 | E47: 314 | F47: 240542 | G47: 1117432 | H47: 3577 | I47: 2827717 | L47: 121 | M47: 4492 | N47: 4613 | O47: 2832330
B48: 成長 | C48: 9895.6 | D48: 4907.1 | E48: 3.7 | F48: 1909.1 | G48: 11663.8 | H48: 58.9 | I48: 28438.2 | L48: 1.4 | M48: 58 | N48: 59.4 | O48: 28497.6
A49: 15 以上 | B49: 面積 | C49: 3438.87 | D49: 4322.92 | E49: 22.47 | F49: 537.75 | G49: 4327.25 | H49: 58.43 | I49: 12707.69 | L49: 2.75 | M49: 302.1 | N49: 304.85 | O49: 13012.54
B50: 蓄積 | C50: 1478016 | D50: 1315574 | E50: 6581 | F50: 131039 | G50: 1274915 | H50: 12015 | I50: 4218140 | L50: 314 | M50: 25802 | N50: 26116 | O50: 4244256
B51: 成長 | C51: 4673.7 | D51: 4749.1 | E51: 9.1 | F51: 711.5 | G51: 9481.8 | H51: 71.3 | I51: 19696.5 | L51: 3.4 | M51: 136.5 | N51: 139.9 | O51: 19836.4
A52: 計 | B52: 面積 | C52: =SUM(C7,C10,C13,C16,C19,C22,C25,C28,C31,C34,C37,C40,C43,C46,C49) -> 11324.49 | D52: 26170.67 | E52: 48.81 | F52: 9285.11 | G52: 17111.87 | H52: 482.85 | I52: =SUM(C52:H52) -> 64423.8 | J52: =SUM(J7,J10,J13,J16,J19,J22,J25,J28,J31,J34,J37,J40,J43,J46,J49) -> 0 | K52: =SUM(K7,K10,K13,K16,K19,K22,K25,K28,K31,K34,K37,K40,K43,K46,K49) -> 0.56 | L52: =SUM(L7,L10,L13,L16,L19,L22,L25,L28,L31,L34,L37,L40,L43,L46,L49) -> 85.21 | M52: =SUM(M7,M10,M13,M16,M19,M22,M25,M28,M31,M34,M37,M40,M43,M46,M49) -> 626.7 | N52: =SUM(J52:M52) -> 712.47 | O52: 65136.27
B53: 蓄積 | C53: 4444510 | D53: 6245304 | E53: 11378 | F53: 2105927 | G53: 4655160 | H53: 70483 | I53: =SUM(C53:H53) -> 17532762 | J53: =SUM(J8,J11,J14,J17,J20,J23,J26,J29,J32,J35,J38,J41,J44,J47,J50) -> 0 | K53: 15 | L53: 5730 | M53: 47272 | N53: =SUM(J53:M53) -> 53017 | O53: 17585779
B54: 成長 | C54: 38886.1 | D54: 100041.8 | E54: 139.6 | F54: 21778 | G54: 51142.4 | H54: 1634.3 | I54: =SUM(C54:H54) -> 213622.2 | J54: 0 | K54: 1.1 | L54: 204.5 | M54: 678.6 | N54: =SUM(J54:M54) -> 884.2 | O54: 214506.4

Sheet 木曽
A1: 第5表 地域振興局別・人工林天然林別・資源構成表
A3: 木曽地域振興局(人工林) | O3: 単位 面積 : ha、蓄積 成長量 : ㎥
B4: 樹種 | C4: 針 葉 樹 | J4: 広 葉 樹 | O4: 計
C5: ス ギ | D5: ヒ ノ キ | E5: サ ワ ラ | F5: ア カ マ ツ | G5: カ ラ マ ツ | H5: そ の 他 針 | I5: 小 計 | J5: ク ヌ ギ | K5: ブ ナ | L5: ナ ラ | M5: そ の 他 広 | N5: 小 計
A6: 齢級
A7: 1 | B7: 面積 | D7: 1.28 | G7: 9.97 | I7: 11.25 | M7: 1.86 | N7: 1.86 | O7: =SUM(N7,I7) -> 13.11
B8: 蓄積 | D8: 0 | G8: 0 | I8: 0 | M8: 0 | N8: 0 | O8: =SUM(N8,I8) -> 0
B9: 成長 | D9: 0 | G9: 0 | I9: 0 | M9: 0 | N9: 0 | O9: 0
A10: 2 | B10: 面積 | C10: 0.2 | D10: 7.91 | G10: 8.06 | I10: 16.17 | L10: 0.39 | M10: 3.02 | N10: 3.41 | O10: 19.58
B11: 蓄積 | C11: 0 | D11: 0 | G11: 0 | I11: 0 | L11: 4 | M11: 34 | N11: 38 | O11: 38
B12: 成長 | C12: 0 | D12: 0 | G12: 0 | I12: 0 | L12: 0.6 | M12: 4.5 | N12: 5.1 | O12: 5.1
A13: 3 | B13: 面積 | D13: 6.16 | I13: 6.16 | L13: 0.19 | M13: 0.93 | N13: 1.12 | O13: 7.28
B14: 蓄積 | D14: 241 | I14: 241 | L14: 3 | M14: 16 | N14: 19 | O14: 260
B15: 成長 | D15: 46.7 | I15: 46.7 | L15: 0.3 | M15: 1.5 | N15: 1.8 | O15: 48.5
A16: 4 | B16: 面積 | C16: 0.36 | D16: 32.17 | E16: 2.37 | F16: 0.13 | G16: 0.1 | H16: 0.24 | I16: 35.37 | M16: 9.28 | N16: 9.28 | O16: 44.65
B17: 蓄積 | C17: 49 | D17: 2415 | E17: 145 | F17: 10 | G17: 9 | H17: 7 | I17: 2635 | M17: 308 | N17: 308 | O17: 2943
B18: 成長 | C18: 4 | D18: 221.5 | E18: 13.3 | F18: 0.8 | G18: 0.5 | H18: 0.6 | I18: 240.7 | M18: 21 | N18: 21 | O18: 261.7
A19: 5 | B19: 面積 | D19: 106.8 | E19: 0.1 | F19: 0.33 | G19: 1.48 | H19: 0.22 | I19: 108.93 | M19: 5.5 | N19: 5.5 | O19: 114.43
B20: 蓄積 | D20: 11292 | E20: 11 | F20: 522 | G20: 147 | H20: 10 | I20: 11982 | M20: 217 | N20: 217 | O20: 12199
B21: 成長 | D21: 656.4 | E21: 0.6 | F21: 26.3 | G21: 6.8 | H21: 0.6 | I21: 690.7 | M21: 11.4 | N21: 11.4 | O21: 702.1
A22: 6 | B22: 面積 | C22: 0.04 | D22: 274.88 | E22: 0.64 | F22: 0.46 | G22: 7.95 | H22: 0.44 | I22: 284.41 | L22: 0.58 | M22: 6.86 | N22: 7.44 | O22: 291.85
B23: 蓄積 | C23: 7 | D23: 38724 | E23: 72 | F23: 67 | G23: 1202 | H23: 27 | I23: 40099 | L23: 29 | M23: 285 | N23: 314 | O23: 40413
B24: 成長 | C24: 0.3 | D24: 1664.9 | E24: 3 | F24: 2.5 | G24: 28.1 | H24: 1.4 | I24: 1700.2 | L24: 1.2 | M24: 11.7 | N24: 12.9 | O24: 1713.1
A25: 7 | B25: 面積 | C25: 0.41 | D25: 344.94 | E25: 1.17 | F25: 0.1 | G25: 5.74 | H25: 0.4 | I25: 352.76 | M25: 3.26 | N25: 3.26 | O25: 356.02
B26: 蓄積 | C26: 96 | D26: 55732 | E26: 194 | F26: 16 | G26: 1047 | H26: 173 | I26: 57258 | M26: 170 | N26: 170 | O26: 57428
B27: 成長 | C27: 2.5 | D27: 1803 | E27: 6.3 | F27: 0.4 | G27: 23.1 | H27: 7.4 | I27: 1842.7 | M27: 5 | N27: 5 | O27: 1847.7
A28: 8 | B28: 面積 | C28: 2.85 | D28: 849.57 | E28: 0.69 | F28: 2.3 | G28: 22.1 | H28: 11.22 | I28: 888.73 | M28: 1.99 | N28: 1.99 | O28: 890.72
B29: 蓄積 | C29: 761 | D29: 155327 | E29: 124 | F29: 394 | G29: 4204 | H29: 1242 | I29: 162052 | M29: 128 | N29: 128 | O29: 162180
B30: 成長 | C30: 17.3 | D30: 4063.5 | E30: 3.3 | F30: 8.4 | G30: 88.9 | H30: 46.2 | I30: 4227.6 | M30: 3.7 | N30: 3.7 | O30: 4231.3
A31: 9 | B31: 面積 | C31: 8.55 | D31: 1333.37 | E31: 0.79 | F31: 6.12 | G31: 68.51 | H31: 11.18 | I31: 1428.52 | M31: 12.1 | N31: 12.1 | O31: 1440.62
B32: 蓄積 | C32: 2344 | D32: 269687 | E32: 163 | F32: 1215 | G32: 15817 | H32: 1211 | I32: 290437 | M32: 992 | N32: 992 | O32: 291429
B33: 成長 | C33: 40 | D33: 5735.3 | E33: 3.6 | F33: 18.2 | G33: 284.8 | H33: 37.5 | I33: 6119.4 | M33: 27.6 | N33: 27.6 | O33: 6147
A34: 10 | B34: 面積 | C34: 25.8 | D34: 1353.01 | E34: 1.64 | F34: 77.4 | G34: 88.85 | H34: 19.68 | I34: 1566.38 | M34: 6.01 | N34: 6.01 | O34: 1572.39
B35: 蓄積 | C35: 7689 | D35: 299413 | E35: 376 | F35: 16157 | G35: 21793 | H35: 2533 | I35: 347961 | M35: 533 | N35: 533 | O35: 348494
B36: 成長 | C36: 108.2 | D36: 5462.6 | E36: 7 | F36: 210.4 | G36: 328.3 | H36: 75.5 | I36: 6192 | M36: 13.3 | N36: 13.3 | O36: 6205.3
A37: 11 | B37: 面積 | C37: 60.52 | D37: 1493.61 | E37: 8.3 | F37: 411.61 | G37: 307.35 | H37: 25.33 | I37: 2306.72 | M37: 0.17 | N37: 0.17 | O37: 2306.89
B38: 蓄積 | C38: 18966 | D38: 357434 | E38: 1969 | F38: 90424 | G38: 80349 | H38: 3585 | I38: 552727 | M38: 18 | N38: 18 | O38: 552745
B39: 成長 | C39: 260.3 | D39: 5760.9 | E39: 31.9 | F39: 999.4 | G39: 1125 | H39: 73.3 | I39: 8250.8 | M39: 0.4 | N39: 0.4 | O39: 8251.2
A40: 12 | B40: 面積 | C40: 251.84 | D40: 1148.68 | E40: 21.38 | F40: 813.7 | G40: 1821.11 | H40: 5.28 | I40: 4061.99 | L40: 0.46 | M40: 1.37 | N40: 1.83 | O40: 4063.82
B41: 蓄積 | C41: 84206 | D41: 296365 | E41: 5669 | F41: 182448 | G41: 497177 | H41: 834 | I41: 1066699 | L41: 53 | M41: 139 | N41: 192 | O41: 1066891
B42: 成長 | C42: 1070.8 | D42: 4190.8 | E42: 79.4 | F42: 1680.2 | G42: 6409.4 | H42: 15.9 | I42: 13446.5 | L42: 0.9 | M42: 2.6 | N42: 3.5 | O42: 13450
A43: 13 | B43: 面積 | C43: 393.19 | D43: 839.25 | E43: 25.07 | F43: 491.54 | G43: 3671 | H43: 10.29 | I43: 5430.34 | L43: 1.1 | M43: 12.56 | N43: 13.66 | O43: 5444
B44: 蓄積 | C44: 135154 | D44: 228023 | E44: 6843 | F44: 113437 | G44: 1045497 | H44: 1752 | I44: 1530706 | L44: 127 | M44: 1441 | N44: 1568 | O44: 1532274
B45: 成長 | C45: 1645.3 | D45: 3152.3 | E45: 92.3 | F45: 1031.1 | G45: 13067.5 | H45: 32.9 | I45: 19021.4 | L45: 2.2 | M45: 23.9 | N45: 26.1 | O45: 19047.5
A46: 14 | B46: 面積 | C46: 596.47 | D46: 706.8 | E46: 46.2 | F46: 320.56 | G46: 3701.6 | H46: 10.81 | I46: 5382.44 | L46: 0.35 | M46: 0.72 | N46: 1.07 | O46: 5383.51
B47: 蓄積 | C47: 216699 | D47: 197652 | E47: 12924 | F47: 74561 | G47: 1099021 | H47: 1987 | I47: 1602844 | L47: 34 | M47: 88 | N47: 122 | O47: 1602966
B48: 成長 | C48: 2142.4 | D48: 2367.5 | E48: 156.2 | F48: 624 | G48: 11768.5 | H48: 31.9 | I48: 17090.5 | L48: 0.4 | M48: 1 | N48: 1.4 | O48: 17091.9
A49: 15 以上 | B49: 面積 | C49: 531.92 | D49: 1681.73 | E49: 114.39 | F49: 138.48 | G49: 1968.37 | H49: 5.64 | I49: 4440.53 | M49: 6.49 | N49: 6.49 | O49: 4447.02
B50: 蓄積 | C50: 204974 | D50: 507665 | E50: 34955 | F50: 35702 | G50: 596920 | H50: 1213 | I50: 1381429 | M50: 820 | N50: 820 | O50: 1382249
B51: 成長 | C51: 812.2 | D51: 929 | E51: 50.4 | F51: 186.7 | G51: 3940.8 | H51: 11.3 | I51: 5930.4 | M51: 5.1 | N51: 5.1 | O51: 5935.5
A52: 計 | B52: 面積 | C52: =SUM(C7,C10,C13,C16,C19,C22,C25,C28,C31,C34,C37,C40,C43,C46,C49) -> 1872.15 | D52: 10180.16 | E52: 222.74 | F52: 2262.73 | G52: 11682.19 | H52: 100.73 | I52: =SUM(C52:H52) -> 26320.7 | J52: =SUM(J7,J10,J13,J16,J19,J22,J25,J28,J31,J34,J37,J40,J43,J46,J49) -> 0 | K52: =SUM(K7,K10,K13,K16,K19,K22,K25,K28,K31,K34,K37,K40,K43,K46,K49) -> 0 | L52: =SUM(L7,L10,L13,L16,L19,L22,L25,L28,L31,L34,L37,L40,L43,L46,L49) -> 3.07 | M52: =SUM(M7,M10,M13,M16,M19,M22,M25,M28,M31,M34,M37,M40,M43,M46,M49) -> 72.12 | N52: =SUM(J52:M52) -> 75.19 | O52: 26395.89
B53: 蓄積 | C53: 670945 | D53: 2419970 | E53: 63445 | F53: 514953 | G53: 3363183 | H53: 14574 | I53: =SUM(C53:H53) -> 7047070 | J53: =SUM(J8,J11,J14,J17,J20,J23,J26,J29,J32,J35,J38,J41,J44,J47,J50) -> 0 | K53: 0 | L53: 250 | M53: 5189 | N53: =SUM(J53:M53) -> 5439 | O53: 7052509
B54: 成長 | C54: 6103.3 | D54: 36054.4 | E54: 447.3 | F54: 4788.4 | G54: 37071.7 | H54: 334.5 | I54: =SUM(C54:H54) -> 84799.6 | J54: 0 | K54: 0 | L54: 5.6 | M54: 132.7 | N54: =SUM(J54:M54) -> 138.3 | O54: 84937.9

Sheet 松本
A1: 第5表 地域振興局別・人工林天然林別・資源構成表
A3: 松本地域振興局(人工林) | O3: 単位 面積 : ha、蓄積 成長量 : ㎥
B4: 樹種 | C4: 針 葉 樹 | J4: 広 葉 樹 | O4: 計
C5: ス ギ | D5: ヒ ノ キ | E5: サ ワ ラ | F5: ア カ マ ツ | G5: カ ラ マ ツ | H5: そ の 他 針 | I5: 小 計 | J5: ク ヌ ギ | K5: ブ ナ | L5: ナ ラ | M5: そ の 他 広 | N5: 小 計
A6: 齢級
A7: 1 | B7: 面積 | C7: 4.32 | D7: 0.92 | F7: 4.36 | G7: 86.26 | I7: 95.86 | L7: 25.45 | M7: 26.92 | N7: 52.37 | O7: =SUM(N7,I7) -> 148.23
B8: 蓄積 | C8: 0 | D8: 0 | F8: 0 | G8: 0 | I8: 0 | L8: 0 | M8: 0 | N8: 0 | O8: =SUM(N8,I8) -> 0
B9: 成長 | C9: 0 | D9: 0 | F9: 0 | G9: 0 | I9: 0 | L9: 0 | M9: 0 | N9: 0 | O9: 0
A10: 2 | B10: 面積 | C10: 2.62 | D10: 19.32 | F10: 0.15 | G10: 61.9 | H10: 4.82 | I10: 88.81 | J10: 0.2 | L10: 42.03 | M10: 25.32 | N10: 67.55 | O10: 156.36
B11: 蓄積 | C11: 0 | D11: 0 | F11: 0 | G11: 0 | H11: 0 | I11: 0 | J11: 6 | L11: 482 | M11: 284 | N11: 772 | O11: 772
B12: 成長 | C12: 0 | D12: 0 | F12: 0 | G12: 0 | H12: 0 | I12: 0 | J12: 1.8 | L12: 66.2 | M12: 38.9 | N12: 106.9 | O12: 106.9
A13: 3 | B13: 面積 | D13: 13.23 | F13: 0.97 | I13: 14.2 | K13: 6.68 | M13: 10.35 | N13: 17.03 | O13: 31.23
B14: 蓄積 | D14: 402 | F14: 64 | I14: 466 | K14: 40 | M14: 192 | N14: 232 | O14: 698
B15: 成長 | D15: 82.3 | F15: 8.6 | I15: 90.9 | K15: 8.7 | M15: 17.9 | N15: 26.6 | O15: 117.5
A16: 4 | B16: 面積 | C16: 0.14 | D16: 19.09 | F16: 0.71 | G16: 0.45 | H16: 0.04 | I16: 20.43 | L16: 0.07 | M16: 12.66 | N16: 12.73 | O16: 33.16
B17: 蓄積 | C17: 11 | D17: 879 | F17: 60 | G17: 152 | H17: 1 | I17: 1103 | L17: 2 | M17: 376 | N17: 378 | O17: 1481
B18: 成長 | C18: 1.3 | D18: 88.8 | F18: 4.9 | G18: 10.4 | H18: 0.1 | I18: 105.5 | L18: 0.1 | M18: 25.3 | N18: 25.4 | O18: 130.9
A19: 5 | B19: 面積 | C19: 1.56 | D19: 76.86 | F19: 8.18 | G19: 10.61 | H19: 0.64 | I19: 97.85 | J19: 2.25 | L19: 1.07 | M19: 8.31 | N19: 11.63 | O19: 109.48
B20: 蓄積 | C20: 205 | D20: 6410 | F20: 862 | G20: 1136 | H20: 248 | I20: 8861 | J20: 141 | K20: 48 | L20: 210 | M20: 1002 | N20: 1401 | O20: 10262
B21: 成長 | C21: 15.3 | D21: 402.9 | F21: 45.7 | G21: 62 | H21: 16.9 | I21: 542.8 | J21: 4.6 | K21: 3.8 | L21: 10.8 | M21: 51.6 | N21: 70.8 | O21: 613.6
A22: 6 | B22: 面積 | C22: 1.58 | D22: 131.71 | F22: 5.91 | G22: 13.87 | H22: 4.3 | I22: 157.37 | L22: 0.33 | M22: 12.63 | N22: 12.96 | O22: 170.33
B23: 蓄積 | C23: 458 | D23: 20081 | F23: 1482 | G23: 3974 | H23: 1129 | I23: 27124 | K23: 122 | L23: 177 | M23: 1899 | N23: 2198 | O23: 29322
B24: 成長 | C24: 22.2 | D24: 1037.1 | F24: 59.6 | G24: 152.4 | H24: 61.1 | I24: 1332.4 | K24: 8.2 | L24: 7.3 | M24: 76 | N24: 91.5 | O24: 1423.9
A25: 7 | B25: 面積 | C25: 11.9 | D25: 228.46 | F25: 21.45 | G25: 32.5 | H25: 5.5 | I25: 299.81 | J25: 0.59 | L25: 0.03 | M25: 8.18 | N25: 8.8 | O25: 308.61
B26: 蓄積 | C26: 2833 | D26: 32630 | E26: 7 | F26: 5622 | G26: 4957 | H26: 2040 | I26: 48089 | J26: 44 | L26: 2 | M26: 448 | N26: 494 | O26: 48583
B27: 成長 | C27: 106.4 | D27: 1337.4 | E27: 0.3 | F27: 150.9 | G27: 143.4 | H27: 89.6 | I27: 1828 | J27: 0.6 | L27: 0.1 | M27: 13.8 | N27: 14.5 | O27: 1842.5
A28: 8 | B28: 面積 | C28: 22.67 | D28: 336.39 | E28: 1.77 | F28: 113.39 | G28: 132.74 | H28: 34.07 | I28: 641.03 | J28: 3.6 | M28: 26.46 | N28: 30.06 | O28: 671.09
B29: 蓄積 | C29: 6952 | D29: 50633 | E29: 146 | F29: 16336 | G29: 23552 | H29: 5636 | I29: 103255 | J29: 260 | M29: 1922 | N29: 2182 | O29: 105437
B30: 成長 | C30: 192.3 | D30: 1622.7 | E30: 5.8 | F30: 404.6 | G30: 566.9 | H30: 208.4 | I30: 3000.7 | J30: 2.2 | M30: 57.7 | N30: 59.9 | O30: 3060.6
A31: 9 | B31: 面積 | C31: 49.29 | D31: 373.24 | E31: 0.35 | F31: 177.71 | G31: 200.48 | H31: 74.37 | I31: 875.44 | J31: 0.06 | L31: 0.52 | M31: 16.8 | N31: 17.38 | O31: 892.82
B32: 蓄積 | C32: 16745 | D32: 52341 | E32: 51 | F32: 30581 | G32: 38236 | H32: 7860 | I32: 145814 | J32: 5 | L32: 41 | M32: 1016 | N32: 1062 | O32: 146876
B33: 成長 | C33: 295 | D33: 1487.5 | E33: 1.5 | F33: 483.7 | G33: 768.4 | H33: 257.9 | I33: 3294 | J33: 0 | L33: 1.1 | M33: 26.9 | N33: 28 | O33: 3322
A34: 10 | B34: 面積 | C34: 134.61 | D34: 463.77 | E34: 0.41 | F34: 632.79 | G34: 681.13 | H34: 155.2 | I34: 2067.91 | L34: 0.35 | M34: 12.35 | N34: 12.7 | O34: 2080.61
B35: 蓄積 | C35: 50024 | D35: 67792 | E35: 74 | F35: 116559 | G35: 137058 | H35: 19281 | I35: 390788 | L35: 26 | M35: 1017 | N35: 1043 | O35: 391831
B36: 成長 | C36: 768.3 | D36: 1490.8 | E36: 1.5 | F36: 1607.7 | G36: 2284.3 | H36: 524.2 | I36: 6676.8 | L36: 0.7 | M36: 25.5 | N36: 26.2 | O36: 6703
A37: 11 | B37: 面積 | C37: 186.47 | D37: 289.29 | E37: 1.37 | F37: 1470.08 | G37: 1391.91 | H37: 187.67 | I37: 3526.79 | J37: 0.38 | M37: 64.15 | N37: 64.53 | O37: 3591.32
B38: 蓄積 | C38: 74297 | D38: 49175 | E38: 270 | F38: 295324 | G38: 302889 | H38: 23243 | I38: 745198 | J38: 30 | M38: 5460 | N38: 5490 | O38: 750688
B39: 成長 | C39: 914.5 | D39: 948.7 | E39: 5.2 | F39: 3339.9 | G39: 4386.8 | H39: 546 | I39: 10141.1 | J39: 0 | M39: 104.1 | N39: 104.1 | O39: 10245.2
A40: 12 | B40: 面積 | C40: 274.19 | D40: 69.33 | E40: 0.11 | F40: 2979.96 | G40: 3806.1 | H40: 71.12 | I40: 7200.81 | M40: 15.4 | N40: 15.4 | O40: 7216.21
B41: 蓄積 | C41: 114220 | D41: 11857 | E41: 22 | F41: 611331 | G41: 907135 | H41: 9715 | I41: 1654280 | M41: 1123 | N41: 1123 | O41: 1655403
B42: 成長 | C42: 1181.1 | D42: 199.5 | E42: 0.4 | F42: 5964.9 | G42: 11799.5 | H42: 184.4 | I42: 19329.8 | M42: 20.2 | N42: 20.2 | O42: 19350
A43: 13 | B43: 面積 | C43: 355.66 | D43: 61.3 | E43: 1.65 | F43: 2882.22 | G43: 6341.26 | H43: 82.25 | I43: 9724.34 | J43: 1.08 | L43: 0.1 | M43: 47.13 | N43: 48.31 | O43: 9772.65
B44: 蓄積 | C44: 151406 | D44: 11721 | E44: 366 | F44: 611726 | G44: 1546478 | H44: 11358 | I44: 2333055 | J44: 91 | L44: 12 | M44: 3882 | N44: 3985 | O44: 2337040
B45: 成長 | C45: 1531.5 | D45: 180.1 | E45: 5.1 | F45: 5822.6 | G45: 19606 | H45: 207.4 | I45: 27352.7 | J45: 0 | L45: 0.2 | M45: 58.2 | N45: 58.4 | O45: 27411.1
A46: 14 | B46: 面積 | C46: 415.67 | D46: 83.34 | E46: 13.7 | F46: 1462.33 | G46: 7237.52 | H46: 22.31 | I46: 9234.87 | J46: 0.02 | L46: 0.3 | M46: 43.44 | N46: 43.76 | O46: 9278.63
B47: 蓄積 | C47: 180283 | D47: 18163 | E47: 1990 | F47: 319101 | G47: 1848983 | H47: 3368 | I47: 2371888 | J47: 2 | L47: 30 | M47: 3614 | N47: 3646 | O47: 2375534
B48: 成長 | C48: 1664.9 | D48: 244.6 | E48: 29.6 | F48: 2579.9 | G48: 19956.9 | H48: 56.7 | I48: 24532.6 | J48: 0 | L48: 0.3 | M48: 43.7 | N48: 44 | O48: 24576.6
A49: 15 以上 | B49: 面積 | C49: 904 | D49: 895.31 | E49: 40.63 | F49: 419.76 | G49: 6272.7 | H49: 13.74 | I49: 8546.14 | L49: 2.25 | M49: 103.78 | N49: 106.03 | O49: 8652.17
B50: 蓄積 | C50: 449587 | D50: 211189 | E50: 8197 | F50: 93741 | G50: 1714343 | H50: 2838 | I50: 2479895 | L50: 222 | M50: 9859 | N50: 10081 | O50: 2489976
B51: 成長 | C51: 2424.8 | D51: 575.8 | E51: 51.9 | F51: 570 | G51: 9547.5 | H51: 30.2 | I51: 13200.2 | L51: 2.3 | M51: 60.7 | N51: 63 | O51: 13263.2
A52: 計 | B52: 面積 | C52: =SUM(C7,C10,C13,C16,C19,C22,C25,C28,C31,C34,C37,C40,C43,C46,C49) -> 2364.68 | D52: 3061.56 | E52: 59.99 | F52: 10179.97 | G52: 26269.43 | H52: 656.03 | I52: =SUM(C52:H52) -> 42591.66 | J52: =SUM(J7,J10,J13,J16,J19,J22,J25,J28,J31,J34,J37,J40,J43,J46,J49) -> 8.18 | K52: =SUM(K7,K10,K13,K16,K19,K22,K25,K28,K31,K34,K37,K40,K43,K46,K49) -> 6.68 | L52: =SUM(L7,L10,L13,L16,L19,L22,L25,L28,L31,L34,L37,L40,L43,L46,L49) -> 72.5 | M52: =SUM(M7,M10,M13,M16,M19,M22,M25,M28,M31,M34,M37,M40,M43,M46,M49) -> 433.88 | N52: =SUM(J52:M52) -> 521.24 | O52: 43112.9
B53: 蓄積 | C53: 1047021 | D53: 533273 | E53: 11123 | F53: 2102789 | G53: 6528893 | H53: 86717 | I53: =SUM(C53:H53) -> 10309816 | J53: =SUM(J8,J11,J14,J17,J20,J23,J26,J29,J32,J35,J38,J41,J44,J47,J50) -> 579 | K53: 210 | L53: 1204 | M53: 32094 | N53: =SUM(J53:M53) -> 34087 | O53: 10343903
B54: 成長 | C54: 9117.6 | D54: 9698.2 | E54: 101.3 | F54: 21043 | G54: 69284.5 | H54: 2182.9 | I54: =SUM(C54:H54) -> 111427.5 | J54: 9.2 | K54: 20.7 | L54: 89.1 | M54: 620.5 | N54: =SUM(J54:M54) -> 739.5 | O54: 112167

Sheet 北アルプス
A1: 第5表 地域振興局別・人工林天然林別・資源構成表
A3: 北アルプス地域振興局(人工林) | O3: 単位 面積 : ha、蓄積 成長量 : ㎥
B4: 樹種 | C4: 針 葉 樹 | J4: 広 葉 樹 | O4: 計
C5: ス ギ | D5: ヒ ノ キ | E5: サ ワ ラ | F5: ア カ マ ツ | G5: カ ラ マ ツ | H5: そ の 他 針 | I5: 小 計 | J5: ク ヌ ギ | K5: ブ ナ | L5: ナ ラ | M5: そ の 他 広 | N5: 小 計
A6: 齢級
A7: 1 | B7: 面積 | C7: 1.54 | D7: 0.62 | G7: 18.82 | I7: 20.98 | L7: 4.64 | N7: 4.64 | O7: =SUM(N7,I7) -> 25.62
B8: 蓄積 | C8: 0 | D8: 0 | G8: 0 | I8: 0 | L8: 0 | N8: 0 | O8: =SUM(N8,I8) -> 0
B9: 成長 | C9: 0 | D9: 0 | G9: 0 | I9: 0 | L9: 0 | N9: 0 | O9: 0
A10: 2 | B10: 面積 | D10: 3.28 | G10: 29.8 | I10: 33.08 | J10: 0.52 | L10: 10.23 | M10: 3.26 | N10: 14.01 | O10: 47.09
B11: 蓄積 | D11: 0 | G11: 0 | I11: 0 | J11: 9 | L11: 125 | M11: 27 | N11: 161 | O11: 161
B12: 成長 | D12: 0 | G12: 0 | I12: 0 | J12: 2.9 | L12: 18.1 | M12: 3.4 | N12: 24.4 | O12: 24.4
A13: 3 | B13: 面積 | D13: 17.77 | F13: 0.21 | I13: 17.98 | L13: 2.89 | M13: 3.21 | N13: 6.1 | O13: 24.08
B14: 蓄積 | D14: 432 | F14: 14 | I14: 446 | L14: 63 | M14: 55 | N14: 118 | O14: 564
B15: 成長 | D15: 82 | F15: 1.9 | I15: 83.9 | L15: 5.6 | M15: 5.4 | N15: 11 | O15: 94.9
A16: 4 | B16: 面積 | C16: 32.51 | D16: 70.52 | F16: 0.01 | G16: 0.23 | I16: 103.27 | L16: 1.6 | M16: 14.06 | N16: 15.66 | O16: 118.93
B17: 蓄積 | C17: 2514 | D17: 2842 | F17: 0 | G17: 17 | I17: 5373 | L17: 49 | M17: 349 | N17: 398 | O17: 5771
B18: 成長 | C18: 324 | D18: 286.2 | F18: 0 | G18: 1.3 | I18: 611.5 | L18: 3.4 | M18: 23.7 | N18: 27.1 | O18: 638.6
A19: 5 | B19: 面積 | C19: 29.65 | D19: 60.66 | F19: 0.9 | G19: 1.36 | H19: 0.84 | I19: 93.41 | L19: 2.55 | M19: 8.64 | N19: 11.19 | O19: 104.6
B20: 蓄積 | C20: 3583 | D20: 3724 | F20: 78 | G20: 118 | H20: 27 | I20: 7530 | K20: 3 | L20: 107 | M20: 1142 | N20: 1252 | O20: 8782
B21: 成長 | C21: 276.6 | D21: 237.1 | F21: 3.9 | G21: 6.4 | H21: 1.8 | I21: 525.8 | K21: 0.2 | L21: 5.5 | M21: 58.5 | N21: 64.2 | O21: 590
A22: 6 | B22: 面積 | C22: 23.72 | D22: 161.12 | F22: 6.93 | G22: 31.29 | H22: 0.38 | I22: 223.44 | L22: 0.02 | M22: 5.23 | N22: 5.25 | O22: 228.69
B23: 蓄積 | C23: 3813 | D23: 11391 | F23: 718 | G23: 3564 | H23: 19 | I23: 19505 | L23: 1 | M23: 401 | N23: 402 | O23: 19907
B24: 成長 | C24: 200.2 | D24: 610.3 | F24: 32.8 | G24: 140.7 | H24: 1 | I24: 985 | L24: 0 | M24: 16.1 | N24: 16.1 | O24: 1001.1
A25: 7 | B25: 面積 | C25: 72.68 | D25: 78.59 | F25: 2.16 | G25: 23.11 | H25: 0.07 | I25: 176.61 | L25: 0.15 | M25: 2.39 | N25: 2.54 | O25: 179.15
B26: 蓄積 | C26: 15588 | D26: 8202 | F26: 277 | G26: 4764 | H26: 1 | I26: 28832 | L26: 7 | M26: 213 | N26: 220 | O26: 29052
B27: 成長 | C27: 625.4 | D27: 363.8 | F27: 8.4 | G27: 140.5 | H27: 0 | I27: 1138.1 | L27: 0.2 | M27: 6.6 | N27: 6.8 | O27: 1144.9
A28: 8 | B28: 面積 | C28: 234.58 | D28: 71.3 | F28: 4.83 | G28: 26.03 | I28: 336.74 | M28: 6.07 | N28: 6.07 | O28: 342.81
B29: 蓄積 | C29: 57187 | D29: 10809 | F29: 658 | G29: 4786 | I29: 73440 | M29: 394 | N29: 394 | O29: 73834
B30: 成長 | C30: 1672.2 | D30: 353.5 | F30: 17.4 | G30: 114.4 | I30: 2157.5 | M30: 11.7 | N30: 11.7 | O30: 2169.2
A31: 9 | B31: 面積 | C31: 315.71 | D31: 158.91 | E31: 0.1 | F31: 27.83 | G31: 25.9 | H31: 1 | I31: 529.45 | L31: 1.97 | M31: 5.96 | N31: 7.93 | O31: 537.38
B32: 蓄積 | C32: 87929 | D32: 21832 | E32: 9 | F32: 4458 | G32: 4714 | H32: 103 | I32: 119045 | L32: 128 | M32: 465 | N32: 593 | O32: 119638
B33: 成長 | C33: 1675.4 | D33: 642.4 | E33: 0.3 | F33: 72.6 | G33: 91.8 | H33: 3.4 | I33: 2485.9 | L33: 3.2 | M33: 12.8 | N33: 16 | O33: 2501.9
A34: 10 | B34: 面積 | C34: 548.47 | D34: 212.91 | E34: 0.11 | F34: 116.83 | G34: 52.58 | H34: 30.7 | I34: 961.6 | M34: 5.71 | N34: 5.71 | O34: 967.31
B35: 蓄積 | C35: 171391 | D35: 27117 | E35: 21 | F35: 20280 | G35: 11663 | H35: 3656 | I35: 234128 | M35: 485 | N35: 485 | O35: 234613
B36: 成長 | C36: 2771 | D36: 628.7 | E36: 0.4 | F36: 288.4 | G36: 186 | H36: 100.2 | I36: 3974.7 | M36: 12.5 | N36: 12.5 | O36: 3987.2
A37: 11 | B37: 面積 | C37: 921.69 | D37: 135.38 | E37: 1.43 | F37: 348.1 | G37: 50.89 | H37: 39.7 | I37: 1497.19 | J37: 0.04 | M37: 0.98 | N37: 1.02 | O37: 1498.21
B38: 蓄積 | C38: 313579 | D38: 17424 | E38: 172 | F38: 61567 | G38: 11003 | H38: 4710 | I38: 408455 | J38: 3 | M38: 95 | N38: 98 | O38: 408553
B39: 成長 | C39: 4097.9 | D39: 384.5 | E39: 4.1 | F39: 720.4 | G39: 160.5 | H39: 109.9 | I39: 5477.3 | J39: 0 | M39: 1.9 | N39: 1.9 | O39: 5479.2
A40: 12 | B40: 面積 | C40: 1078.21 | D40: 44.53 | F40: 667.62 | G40: 232.54 | H40: 11.42 | I40: 2034.32 | M40: 2.88 | N40: 2.88 | O40: 2037.2
B41: 蓄積 | C41: 391773 | D41: 5689 | F41: 128310 | G41: 53564 | H41: 1451 | I41: 580787 | M41: 215 | N41: 215 | O41: 581002
B42: 成長 | C42: 4313.1 | D42: 108.1 | F42: 1313.3 | G42: 700.2 | H42: 27.7 | I42: 6462.4 | M42: 4 | N42: 4 | O42: 6466.4
A43: 13 | B43: 面積 | C43: 1016.05 | D43: 48.58 | F43: 620.12 | G43: 765.51 | H43: 0.3 | I43: 2450.56 | M43: 35.33 | N43: 35.33 | O43: 2485.89
B44: 蓄積 | C44: 375994 | D44: 7856 | F44: 122679 | G44: 176303 | H44: 45 | I44: 682877 | M44: 3155 | N44: 3155 | O44: 686032
B45: 成長 | C45: 4051.8 | D45: 137 | F45: 1205.4 | G45: 2218.9 | H45: 0.8 | I45: 7613.9 | M45: 53.7 | N45: 53.7 | O45: 7667.6
A46: 14 | B46: 面積 | C46: 905.41 | D46: 23.76 | F46: 303.49 | G46: 967.5 | H46: 1.8 | I46: 2201.96 | M46: 0.85 | N46: 0.85 | O46: 2202.81
B47: 蓄積 | C47: 351400 | D47: 4508 | F47: 63017 | G47: 240950 | H47: 269 | I47: 660144 | M47: 84 | N47: 84 | O47: 660228
B48: 成長 | C48: 3409 | D48: 62 | F48: 519.9 | G48: 2537.2 | H48: 4.8 | I48: 6532.9 | M48: 1.1 | N48: 1.1 | O48: 6534
A49: 15 以上 | B49: 面積 | C49: 1618.05 | D49: 152.24 | E49: 0.25 | F49: 73.08 | G49: 1187.67 | H49: 2.11 | I49: 3033.4 | L49: 1.73 | M49: 17.25 | N49: 18.98 | O49: 3052.38
B50: 蓄積 | C50: 709812 | D50: 31428 | E50: 56 | F50: 16732 | G50: 321644 | H50: 378 | I50: 1080050 | L50: 117 | M50: 1608 | N50: 1725 | O50: 1081775
B51: 成長 | C51: 4335.3 | D51: 90.3 | E51: 0 | F51: 97.2 | G51: 1743.9 | H51: 3.3 | I51: 6270 | L51: 1.2 | M51: 5.1 | N51: 6.3 | O51: 6276.3
A52: 計 | B52: 面積 | C52: =SUM(C7,C10,C13,C16,C19,C22,C25,C28,C31,C34,C37,C40,C43,C46,C49) -> 6798.27 | D52: 1240.17 | E52: 1.89 | F52: 2172.11 | G52: 3413.23 | H52: 88.32 | I52: =SUM(C52:H52) -> 13713.99 | J52: =SUM(J7,J10,J13,J16,J19,J22,J25,J28,J31,J34,J37,J40,J43,J46,J49) -> 0.56 | K52: =SUM(K7,K10,K13,K16,K19,K22,K25,K28,K31,K34,K37,K40,K43,K46,K49) -> 0 | L52: =SUM(L7,L10,L13,L16,L19,L22,L25,L28,L31,L34,L37,L40,L43,L46,L49) -> 25.78 | M52: =SUM(M7,M10,M13,M16,M19,M22,M25,M28,M31,M34,M37,M40,M43,M46,M49) -> 111.82 | N52: =SUM(J52:M52) -> 138.16 | O52: 13852.15
B53: 蓄積 | C53: 2484563 | D53: 153254 | E53: 258 | F53: 418788 | G53: 833090 | H53: 10659 | I53: =SUM(C53:H53) -> 3900612 | J53: =SUM(J8,J11,J14,J17,J20,J23,J26,J29,J32,J35,J38,J41,J44,J47,J50) -> 12 | K53: 3 | L53: 597 | M53: 8688 | N53: =SUM(J53:M53) -> 9300 | O53: 3909912
B54: 成長 | C54: 27751.9 | D54: 3985.9 | E54: 4.8 | F54: 4281.6 | G54: 8041.8 | H54: 252.9 | I54: =SUM(C54:H54) -> 44318.9 | J54: 2.9 | K54: 0.2 | L54: 37.2 | M54: 216.5 | N54: =SUM(J54:M54) -> 256.8 | O54: 44575.7

Sheet 長野
A1: 第5表 地域振興局別・人工林天然林別・資源構成表
A3: 長野地域振興局(人工林) | O3: 単位 面積 : ha、蓄積 成長量 : ㎥
B4: 樹種 | C4: 針 葉 樹 | J4: 広 葉 樹 | O4: 計
C5: ス ギ | D5: ヒ ノ キ | E5: サ ワ ラ | F5: ア カ マ ツ | G5: カ ラ マ ツ | H5: そ の 他 針 | I5: 小 計 | J5: ク ヌ ギ | K5: ブ ナ | L5: ナ ラ | M5: そ の 他 広 | N5: 小 計
A6: 齢級
A7: 1 | B7: 面積 | C7: 10.65 | F7: 0.34 | G7: 44.96 | I7: 55.95 | M7: 0.19 | N7: 0.19 | O7: =SUM(N7,I7) -> 56.14
B8: 蓄積 | C8: 0 | F8: 0 | G8: 0 | I8: 0 | M8: 0 | N8: 0 | O8: =SUM(N8,I8) -> 0
B9: 成長 | C9: 0 | F9: 0 | G9: 0 | I9: 0 | M9: 0 | N9: 0 | O9: 0
A10: 2 | B10: 面積 | C10: 3.04 | F10: 1.25 | G10: 15.75 | I10: 20.04 | L10: 7.28 | M10: 0.22 | N10: 7.5 | O10: 27.54
B11: 蓄積 | C11: 0 | F11: 0 | G11: 0 | I11: 0 | L11: 87 | M11: 3 | N11: 90 | O11: 90
B12: 成長 | C12: 0 | F12: 0 | G12: 0 | I12: 0 | L12: 12.9 | M12: 0.4 | N12: 13.3 | O12: 13.3
A13: 3 | B13: 面積 | C13: 5.21 | D13: 0.5 | G13: 17.78 | I13: 23.49 | L13: 2.08 | M13: 0.03 | N13: 2.11 | O13: 25.6
B14: 蓄積 | C14: 688 | D14: 639 | G14: 4311 | I14: 5638 | L14: 39 | M14: 0 | N14: 39 | O14: 5677
B15: 成長 | C15: 169.9 | D15: 117.5 | G15: 431.1 | I15: 718.5 | L15: 3.4 | M15: 0 | N15: 3.4 | O15: 721.9
A16: 4 | B16: 面積 | C16: 3.63 | D16: 13.03 | F16: 0.04 | G16: 1.38 | I16: 18.08 | K16: 0.06 | L16: 0.07 | M16: 1.88 | N16: 2.01 | O16: 20.09
B17: 蓄積 | C17: 543 | D17: 2627 | F17: 3 | G17: 252 | I17: 3425 | K17: 1 | L17: 2 | M17: 71 | N17: 74 | O17: 3499
B18: 成長 | C18: 55.5 | D18: 260.6 | F18: 0.2 | G18: 17.1 | I18: 333.4 | K18: 0.1 | L18: 0.1 | M18: 4.7 | N18: 4.9 | O18: 338.3
A19: 5 | B19: 面積 | C19: 13.96 | D19: 29.61 | F19: 0.45 | G19: 5.74 | H19: 2.97 | I19: 52.73 | J19: 8.15 | K19: 1.81 | L19: 1.24 | M19: 17.17 | N19: 28.37 | O19: 81.1
B20: 蓄積 | C20: 2610 | D20: 4296 | F20: 47 | G20: 660 | H20: 54 | I20: 7667 | J20: 248 | K20: 45 | L20: 49 | M20: 632 | N20: 974 | O20: 8641
B21: 成長 | C21: 181.6 | D21: 254.9 | F21: 2.4 | G21: 35.8 | H21: 3.7 | I21: 478.4 | J21: 8 | K21: 3.5 | L21: 2.8 | M21: 34.3 | N21: 48.6 | O21: 527
A22: 6 | B22: 面積 | C22: 71.21 | D22: 62.59 | F22: 0.6 | G22: 18.68 | H22: 10.49 | I22: 163.57 | J22: 1.94 | K22: 1.05 | L22: 17.15 | M22: 40.31 | N22: 60.45 | O22: 224.02
B23: 蓄積 | C23: 19316 | D23: 9502 | F23: 58 | G23: 2803 | H23: 870 | I23: 32549 | J23: 150 | K23: 28 | L23: 893 | M23: 2468 | N23: 3539 | O23: 36088
B24: 成長 | C24: 927.7 | D24: 423.9 | F24: 2 | G24: 101.1 | H24: 47.1 | I24: 1501.8 | J24: 3.5 | K24: 1.9 | L24: 35.9 | M24: 98.1 | N24: 139.4 | O24: 1641.2
A25: 7 | B25: 面積 | C25: 218.56 | D25: 62.38 | F25: 4.95 | G25: 25.53 | H25: 23.49 | I25: 334.91 | L25: 2.64 | M25: 26.26 | N25: 28.9 | O25: 363.81
B26: 蓄積 | C26: 65582 | D26: 11701 | F26: 822 | G26: 4153 | H26: 927 | I26: 83185 | L26: 125 | M26: 1630 | N26: 1755 | O26: 84940
B27: 成長 | C27: 2461.4 | D27: 406 | F27: 19.8 | G27: 118.1 | H27: 40.8 | I27: 3046.1 | L27: 3.8 | M27: 49.9 | N27: 53.7 | O27: 3099.8
A28: 8 | B28: 面積 | C28: 504.47 | D28: 44.45 | F28: 4.26 | G28: 43.27 | H28: 20.07 | I28: 616.52 | L28: 1.76 | M28: 20.57 | N28: 22.33 | O28: 638.85
B29: 蓄積 | C29: 171819 | D29: 10257 | F29: 724 | G29: 9800 | H29: 1326 | I29: 193926 | L29: 123 | M29: 1493 | N29: 1616 | O29: 195542
B30: 成長 | C30: 5668.4 | D30: 282.5 | F30: 15.8 | G30: 226.1 | H30: 49 | I30: 6241.8 | L30: 3.7 | M30: 44.7 | N30: 48.4 | O30: 6290.2
A31: 9 | B31: 面積 | C31: 1063.12 | D31: 111.04 | F31: 45.92 | G31: 64.14 | H31: 38.69 | I31: 1322.91 | M31: 30.2 | N31: 30.2 | O31: 1353.11
B32: 蓄積 | C32: 428853 | D32: 26006 | F32: 8968 | G32: 13894 | H32: 3821 | I32: 481542 | M32: 2690 | N32: 2690 | O32: 484232
B33: 成長 | C33: 9866.9 | D33: 599.7 | F33: 136.7 | G33: 302.5 | H33: 122.6 | I33: 11028.4 | M33: 76 | N33: 76 | O33: 11104.4
A34: 10 | B34: 面積 | C34: 1490.1 | D34: 119.4 | F34: 157.25 | G34: 258.85 | H34: 79.27 | I34: 2104.87 | M34: 4.69 | N34: 4.69 | O34: 2109.56
B35: 蓄積 | C35: 640921 | D35: 25600 | F35: 31997 | G35: 59421 | H35: 7561 | I35: 765500 | M35: 417 | N35: 417 | O35: 765917
B36: 成長 | C36: 11011.1 | D36: 472.1 | F36: 421.4 | G36: 921.2 | H36: 208.7 | I36: 13034.5 | M36: 10.8 | N36: 10.8 | O36: 13045.3
A37: 11 | B37: 面積 | C37: 1952.37 | D37: 107.42 | F37: 300.19 | G37: 626.74 | H37: 21.31 | I37: 3008.03 | L37: 0.67 | M37: 4.22 | N37: 4.89 | O37: 3012.92
B38: 蓄積 | C38: 906679 | D38: 25542 | F38: 63371 | G38: 160173 | H38: 2310 | I38: 1158075 | L38: 35 | M38: 371 | N38: 406 | O38: 1158481
B39: 成長 | C39: 11085.7 | D39: 415.6 | F39: 706.8 | G39: 2258.7 | H39: 54.6 | I39: 14521.4 | L39: 0.7 | M39: 7.6 | N39: 8.3 | O39: 14529.7
A40: 12 | B40: 面積 | C40: 2531.1 | D40: 19.42 | F40: 579.23 | G40: 1832.16 | H40: 0.33 | I40: 4962.24 | M40: 9.2 | N40: 9.2 | O40: 4971.44
B41: 蓄積 | C41: 1250619 | D41: 4989 | F41: 124145 | G41: 516554 | H41: 57 | I41: 1896364 | M41: 909 | N41: 909 | O41: 1897273
B42: 成長 | C42: 13837.6 | D42: 70.2 | F42: 1170 | G42: 6726.4 | H42: 1.1 | I42: 21805.3 | M42: 17.9 | N42: 17.9 | O42: 21823.2
A43: 13 | B43: 面積 | C43: 2587.67 | D43: 8.52 | E43: 0.13 | F43: 565.49 | G43: 4670.08 | H43: 8.35 | I43: 7840.24 | J43: 0.18 | M43: 6.72 | N43: 6.9 | O43: 7847.14
B44: 蓄積 | C44: 1327372 | D44: 2327 | E44: 33 | F44: 126816 | G44: 1338912 | H44: 1448 | I44: 2796908 | J44: 9 | M44: 783 | N44: 792 | O44: 2797700
B45: 成長 | C45: 14092.7 | D45: 31.7 | E45: 0.4 | F45: 1163.9 | G45: 16861.5 | H45: 27.4 | I45: 32177.6 | J45: 0 | M45: 13.2 | N45: 13.2 | O45: 32190.8
A46: 14 | B46: 面積 | C46: 2012.55 | D46: 8.91 | E46: 0.26 | F46: 228.72 | G46: 4522.98 | H46: 7.15 | I46: 6780.57 | J46: 1.89 | L46: 0.26 | M46: 4.64 | N46: 6.79 | O46: 6787.36
B47: 蓄積 | C47: 1068941 | D47: 2500 | E47: 75 | F47: 53469 | G47: 1345236 | H47: 1134 | I47: 2471355 | J47: 169 | L47: 31 | M47: 564 | N47: 764 | O47: 2472119
B48: 成長 | C48: 8828.2 | D48: 27.4 | E48: 0.8 | F48: 427.1 | G48: 14554.1 | H48: 18.4 | I48: 23856 | J48: 0 | L48: 0.4 | M48: 6.1 | N48: 6.5 | O48: 23862.5
A49: 15 以上 | B49: 面積 | C49: 4193.88 | D49: 222.05 | E49: 1.58 | F49: 134.45 | G49: 5010.67 | H49: 13.62 | I49: 9576.25 | L49: 0.78 | M49: 19.5 | N49: 20.28 | O49: 9596.53
B50: 蓄積 | C50: 2382528 | D50: 63052 | E50: 482 | F50: 31132 | G50: 1567746 | H50: 2973 | I50: 4047913 | L50: 260 | M50: 1960 | N50: 2220 | O50: 4050133
B51: 成長 | C51: 10223.8 | D51: 55 | E51: 1.2 | F51: 140.9 | G51: 8961.1 | H51: 11.1 | I51: 19393.1 | L51: 1.8 | M51: 13.5 | N51: 15.3 | O51: 19408.4
A52: 計 | B52: 面積 | C52: =SUM(C7,C10,C13,C16,C19,C22,C25,C28,C31,C34,C37,C40,C43,C46,C49) -> 16661.52 | D52: 809.32 | E52: 1.97 | F52: 2023.14 | G52: 17158.71 | H52: 225.74 | I52: =SUM(C52:H52) -> 36880.4 | J52: =SUM(J7,J10,J13,J16,J19,J22,J25,J28,J31,J34,J37,J40,J43,J46,J49) -> 12.16 | K52: =SUM(K7,K10,K13,K16,K19,K22,K25,K28,K31,K34,K37,K40,K43,K46,K49) -> 2.92 | L52: =SUM(L7,L10,L13,L16,L19,L22,L25,L28,L31,L34,L37,L40,L43,L46,L49) -> 33.93 | M52: =SUM(M7,M10,M13,M16,M19,M22,M25,M28,M31,M34,M37,M40,M43,M46,M49) -> 185.8 | N52: =SUM(J52:M52) -> 234.81 | O52: 37115.21
B53: 蓄積 | C53: 8266471 | D53: 189038 | E53: 590 | F53: 441552 | G53: 5023915 | H53: 22481 | I53: =SUM(C53:H53) -> 13944047 | J53: =SUM(J8,J11,J14,J17,J20,J23,J26,J29,J32,J35,J38,J41,J44,J47,J50) -> 576 | K53: 74 | L53: 1644 | M53: 13991 | N53: =SUM(J53:M53) -> 16285 | O53: 13960332
B54: 成長 | C54: 88410.5 | D54: 3417.1 | E54: 2.4 | F54: 4207 | G54: 51514.8 | H54: 584.5 | I54: =SUM(C54:H54) -> 148136.3 | J54: 11.5 | K54: 5.5 | L54: 65.5 | M54: 377.2 | N54: =SUM(J54:M54) -> 459.7 | O54: 148596

Sheet 北信
A1: 第5表 地域振興局別・人工林天然林別・資源構成表
A3: 北信地域振興局(人工林) | O3: 単位 面積 : ha、蓄積 成長量 : ㎥
B4: 樹種 | C4: 針 葉 樹 | J4: 広 葉 樹 | O4: 計
C5: ス ギ | D5: ヒ ノ キ | E5: サ ワ ラ | F5: ア カ マ ツ | G5: カ ラ マ ツ | H5: そ の 他 針 | I5: 小 計 | J5: ク ヌ ギ | K5: ブ ナ | L5: ナ ラ | M5: そ の 他 広 | N5: 小 計
A6: 齢級
A7: 1 | B7: 面積 | C7: 1.1 | G7: 2.06 | I7: 3.16 | M7: 1.56 | N7: 1.56 | O7: =SUM(N7,I7) -> 4.72
B8: 蓄積 | C8: 0 | G8: 0 | I8: 0 | M8: 0 | N8: 0 | O8: =SUM(N8,I8) -> 0
B9: 成長 | C9: 0 | G9: 0 | I9: 0 | M9: 0 | N9: 0 | O9: 0
A10: 2 | B10: 面積 | C10: 6.72 | F10: 0.03 | G10: 1.27 | I10: 8.02 | M10: 2.83 | N10: 2.83 | O10: 10.85
B11: 蓄積 | C11: 0 | F11: 0 | G11: 0 | I11: 0 | M11: 35 | N11: 35 | O11: 35
B12: 成長 | C12: 0 | F12: 0 | G12: 0 | I12: 0 | M12: 5.2 | N12: 5.2 | O12: 5.2
A13: 3 | B13: 面積 | C13: 7.07 | G13: 3.05 | I13: 10.12 | K13: 2.38 | M13: 1.45 | N13: 3.83 | O13: 13.95
B14: 蓄積 | C14: 922 | G14: 177 | I14: 1099 | K14: 24 | M14: 30 | N14: 54 | O14: 1153
B15: 成長 | C15: 159.9 | G15: 17.7 | I15: 177.6 | K15: 2.5 | M15: 2.5 | N15: 5 | O15: 182.6
A16: 4 | B16: 面積 | C16: 3.96 | F16: 0.32 | I16: 4.28 | L16: 0.52 | M16: 3.73 | N16: 4.25 | O16: 8.53
B17: 蓄積 | C17: 619 | F17: 29 | I17: 648 | L17: 17 | M17: 132 | N17: 149 | O17: 797
B18: 成長 | C18: 63 | F18: 2.4 | I18: 65.4 | L18: 1.2 | M18: 8.9 | N18: 10.1 | O18: 75.5
A19: 5 | B19: 面積 | C19: 52.62 | D19: 0.25 | G19: 1.19 | I19: 54.06 | J19: 0.3 | K19: 1.23 | L19: 1.09 | M19: 21.53 | N19: 24.15 | O19: 78.21
B20: 蓄積 | C20: 12522 | D20: 104 | G20: 161 | I20: 12787 | J20: 19 | K20: 115 | L20: 44 | M20: 1103 | N20: 1281 | O20: 14068
B21: 成長 | C21: 864 | D21: 6.1 | G21: 8.6 | I21: 878.7 | J21: 0.5 | K21: 9.2 | L21: 2.4 | M21: 57.2 | N21: 69.3 | O21: 948
A22: 6 | B22: 面積 | C22: 124.88 | D22: 0.07 | G22: 0.38 | H22: 0.36 | I22: 125.69 | K22: 6.01 | L22: 5.24 | M22: 18.04 | N22: 29.29 | O22: 154.98
B23: 蓄積 | C23: 30005 | D23: 9 | G23: 58 | H23: 22 | I23: 30094 | K23: 207 | L23: 273 | M23: 1044 | N23: 1524 | O23: 31618
B24: 成長 | C24: 1522.4 | D24: 0.4 | G24: 2 | H24: 1.3 | I24: 1526.1 | K24: 13.6 | L24: 11.2 | M24: 42.5 | N24: 67.3 | O24: 1593.4
A25: 7 | B25: 面積 | C25: 173.3 | D25: 0.75 | G25: 3.23 | H25: 0.11 | I25: 177.39 | M25: 3.56 | N25: 3.56 | O25: 180.95
B26: 蓄積 | C26: 47573 | D26: 115 | G26: 587 | H26: 11 | I26: 48286 | M26: 205 | N26: 205 | O26: 48491
B27: 成長 | C27: 1865.6 | D27: 4 | G27: 16.6 | H27: 0.5 | I27: 1886.7 | M27: 6.6 | N27: 6.6 | O27: 1893.3
A28: 8 | B28: 面積 | C28: 418.37 | F28: 0.44 | G28: 18.43 | I28: 437.24 | J28: 0.15 | L28: 0.31 | M28: 9.32 | N28: 9.78 | O28: 447.02
B29: 蓄積 | C29: 152523 | F29: 80 | G29: 2974 | I29: 155577 | J29: 13 | L29: 23 | M29: 682 | N29: 718 | O29: 156295
B30: 成長 | C30: 5044.5 | F30: 1.6 | G30: 75.1 | I30: 5121.2 | J30: 0.1 | L30: 0.7 | M30: 20.8 | N30: 21.6 | O30: 5142.8
A31: 9 | B31: 面積 | C31: 669.8 | D31: 6.46 | F31: 2.84 | G31: 33.65 | I31: 712.75 | M31: 2.58 | N31: 2.58 | O31: 715.33
B32: 蓄積 | C32: 261472 | D32: 1087 | F32: 587 | G32: 6159 | I32: 269305 | M32: 204 | N32: 204 | O32: 269509
B33: 成長 | C33: 6087.4 | D33: 28.9 | F33: 8.9 | G33: 121.6 | I33: 6246.8 | M33: 5.8 | N33: 5.8 | O33: 6252.6
A34: 10 | B34: 面積 | C34: 1108.03 | D34: 0.61 | F34: 24.36 | G34: 38.99 | H34: 0.13 | I34: 1172.12 | L34: 0.04 | M34: 6.25 | N34: 6.29 | O34: 1178.41
B35: 蓄積 | C35: 464970 | D35: 141 | F35: 5031 | G35: 8205 | H35: 17 | I35: 478364 | L35: 4 | M35: 582 | N35: 586 | O35: 478950
B36: 成長 | C36: 8083.8 | D36: 2.5 | F36: 65.4 | G36: 132.7 | H36: 0.5 | I36: 8284.9 | L36: 0.1 | M36: 14.7 | N36: 14.8 | O36: 8299.7
A37: 11 | B37: 面積 | C37: 1329.12 | D37: 0.11 | F37: 18.14 | G37: 56.93 | H37: 0.03 | I37: 1404.33 | J37: 0.2 | K37: 0.01 | L37: 0.05 | M37: 2.53 | N37: 2.79 | O37: 1407.12
B38: 蓄積 | C38: 598805 | D38: 28 | F38: 3375 | G38: 15520 | H38: 5 | I38: 617733 | J38: 21 | K38: 1 | L38: 5 | M38: 239 | N38: 266 | O38: 617999
B39: 成長 | C39: 7480.9 | D39: 0.4 | F39: 38.2 | G39: 220.7 | H39: 0.1 | I39: 7740.3 | J39: 0 | K39: 0 | L39: 0.1 | M39: 4.8 | N39: 4.9 | O39: 7745.2
A40: 12 | B40: 面積 | C40: 1760.04 | F40: 27.71 | G40: 311.24 | I40: 2098.99 | L40: 0.04 | M40: 3.95 | N40: 3.99 | O40: 2102.98
B41: 蓄積 | C41: 872180 | F41: 6309 | G41: 87226 | I41: 965715 | L41: 4 | M41: 357 | N41: 361 | O41: 966076
B42: 成長 | C42: 9634 | F42: 57.2 | G42: 1138.8 | I42: 10830 | L42: 0.1 | M42: 6.4 | N42: 6.5 | O42: 10836.5
A43: 13 | B43: 面積 | C43: 1700.58 | F43: 34.43 | G43: 778.13 | I43: 2513.14 | K43: 50.81 | L43: 0.24 | M43: 10.61 | N43: 61.66 | O43: 2574.8
B44: 蓄積 | C44: 879652 | F44: 7393 | G44: 223993 | I44: 1111038 | K44: 2847 | L44: 28 | M44: 1183 | N44: 4058 | O44: 1115096
B45: 成長 | C45: 9336.6 | F45: 69.4 | G45: 2842.8 | I45: 12248.8 | K45: 68.5 | L45: 0.4 | M45: 18.8 | N45: 87.7 | O45: 12336.5
A46: 14 | B46: 面積 | C46: 1405.41 | D46: 0.26 | F46: 4.66 | G46: 836.63 | H46: 0.03 | I46: 2246.99 | M46: 19.97 | N46: 19.97 | O46: 2266.96
B47: 蓄積 | C47: 753784 | D47: 75 | F47: 1123 | G47: 249975 | H47: 6 | I47: 1004963 | M47: 2340 | N47: 2340 | O47: 1007303
B48: 成長 | C48: 6297.5 | D48: 0.8 | F48: 8.5 | G48: 2716.2 | H48: 0.1 | I48: 9023.1 | M48: 25.4 | N48: 25.4 | O48: 9048.5
A49: 15 以上 | B49: 面積 | C49: 3280.98 | D49: 38.45 | F49: 6.12 | G49: 940.75 | H49: 9.9 | I49: 4276.2 | K49: 12.32 | L49: 1.42 | M49: 42.49 | N49: 56.23 | O49: 4332.43
B50: 蓄積 | C50: 1881429 | D50: 10553 | F50: 1653 | G50: 303674 | H50: 2197 | I50: 2199506 | K50: 1134 | L50: 181 | M50: 5072 | N50: 6387 | O50: 2205893
B51: 成長 | C51: 8235 | D51: 0.5 | F51: 7.9 | G51: 1651.8 | H51: 7.7 | I51: 9902.9 | K51: 9.1 | L51: 1.6 | M51: 30.6 | N51: 41.3 | O51: 9944.2
A52: 計 | B52: 面積 | C52: =SUM(C7,C10,C13,C16,C19,C22,C25,C28,C31,C34,C37,C40,C43,C46,C49) -> 12041.98 | D52: 46.96 | E52: 0 | F52: 119.05 | G52: 3025.93 | H52: 10.56 | I52: =SUM(C52:H52) -> 15244.48 | J52: =SUM(J7,J10,J13,J16,J19,J22,J25,J28,J31,J34,J37,J40,J43,J46,J49) -> 0.65 | K52: =SUM(K7,K10,K13,K16,K19,K22,K25,K28,K31,K34,K37,K40,K43,K46,K49) -> 72.76 | L52: =SUM(L7,L10,L13,L16,L19,L22,L25,L28,L31,L34,L37,L40,L43,L46,L49) -> 8.95 | M52: =SUM(M7,M10,M13,M16,M19,M22,M25,M28,M31,M34,M37,M40,M43,M46,M49) -> 150.4 | N52: =SUM(J52:M52) -> 232.76 | O52: 15477.24
B53: 蓄積 | C53: 5956456 | D53: 12112 | E53: 0 | F53: 25580 | G53: 898709 | H53: 2258 | I53: =SUM(C53:H53) -> 6895115 | J53: =SUM(J8,J11,J14,J17,J20,J23,J26,J29,J32,J35,J38,J41,J44,J47,J50) -> 53 | K53: 4328 | L53: 579 | M53: 13208 | N53: =SUM(J53:M53) -> 18168 | O53: 6913283
B54: 成長 | C54: 64674.6 | D54: 43.6 | E54: 0 | F54: 259.5 | G54: 8944.6 | H54: 10.2 | I54: =SUM(C54:H54) -> 73932.5 | J54: 0.6 | K54: 102.9 | L54: 17.8 | M54: 250.2 | N54: =SUM(J54:M54) -> 371.5 | O54: 74304
